Organisation Name (A),Department (B),Service Cat Label (C ),Purpose of Spend (D),Expenditure CIPFA Sub Group (E ),Supplier (F),Supplier Reference (G),Pay Date (H),Transaction Number (I),Net Amount (J),Grant to VCSE? (K),Charity Number (L),Card Transaction (M),Irrecoverable VAT (N/A)
Pendle Borough Council,Parks & Recreation Services,Premises Related Expense,Grounds : R & M : Day to Day : Routine,2101,APSE,A0000021, 12/08/2021,PCO0320147,855,N,,N,N/A
Pendle Borough Council,Parks & Recreation Services,Transport Related Expense,Tprt : Repairs : General,3105,BALMERS GM LIMITED,A0000198, 25/08/2021,PCO0320412,43.61,N,,N,N/A
Pendle Borough Council,Parks & Recreation Services,Supplies and Services,Expenditure : Materials,0002,BARNES JB LIMITED,A0000202, 25/08/2021,PCO0320411,10.36,N,,N,N/A
Pendle Borough Council,Parks & Recreation Services,Premises Related Expense,Bldgs : R & M : Day To Day,2001,BARNES JB LIMITED,A0000202, 12/08/2021,PCO0319818,14.55,N,,N,N/A
Pendle Borough Council,Parks & Recreation Services,Transport Related Expense,Tprt : Repairs : General,3105,BARNES JB LIMITED,A0000202, 12/08/2021,PCO0319819,13.79,N,,N,N/A
Pendle Borough Council,Operational Services,Supplies and Services,EFM Materials,4004,BARNES JB LIMITED,A0000202, 12/08/2021,OPS0320128,414.57,N,,N,N/A
Pendle Borough Council,Operational Services,,Stock : Purchases,PJ01,BARNES JB LIMITED,A0000202, 25/08/2021,OPS0320419,14.25,N,,N,N/A
Pendle Borough Council,Engineering & Special Projects,Supplies and Services,Miscellaneous : Other,4707,BLACKBURN/DARWEN BOROUGH COUNCIL,A0000381, 25/08/2021,HED0320479,5297.14,N,,N,N/A
Pendle Borough Council,Parks & Recreation Services,Transport Related Expense,Hire of Plant,3502,BOC GASES LTD,A0000386, 12/08/2021,PCO0319820,21.7,N,,N,N/A
Pendle Borough Council,Parks & Recreation Services,Transport Related Expense,Hire of Plant,3502,BOC GASES LTD,A0000386, 05/08/2021,PCO0320032,21.7,N,,N,N/A
Pendle Borough Council,Engineering & Special Projects,Premises Related Expense,Grounds : R & M : Day to Day : Routine,2101,CB EXCAVATORS LTD,A0000396, 05/08/2021,HED0320051,5195,N,,N,N/A
Pendle Borough Council,Engineering & Special Projects,Premises Related Expense,Grounds : R & M : Day to Day : Routine,2101,CB EXCAVATORS LTD,A0000396, 05/08/2021,HED0320049,3780,N,,N,N/A
Pendle Borough Council,Engineering & Special Projects,Premises Related Expense,Grounds : R & M : Day to Day : Routine,2101,CB EXCAVATORS LTD,A0000396, 05/08/2021,HED0320050,3070,N,,N,N/A
Pendle Borough Council,Parks & Recreation Services,Supplies and Services,Expenditure : Materials,0002,BARROWFORD SAFE & LOCK SERV LT,A0000458, 05/08/2021,PCO0320024,8.76,N,,N,N/A
Pendle Borough Council,Parks & Recreation Services,Transport Related Expense,Tprt : Repairs : General,3105,BARROWFORD SAFE & LOCK SERV LT,A0000458, 05/08/2021,PCO0320024,5.84,N,,N,N/A
Pendle Borough Council,Operational Services,Supplies and Services,EFM Materials,4004,BARROWFORD SAFE & LOCK & BB LOCKSMITHS,A0000510, 19/08/2021,OPS0320336,17.52,N,,N,N/A
Pendle Borough Council,Parks & Recreation Services,Transport Related Expense,Hire of Plant,3502,R J CLOUGH & SON LTD,A0000567, 12/08/2021,PCO0319825,1430,N,,N,N/A
Pendle Borough Council,Parks & Recreation Services,Transport Related Expense,Hire of Plant,3502,R J CLOUGH & SON LTD,A0000567, 12/08/2021,PCO0320150,1430,N,,N,N/A
Pendle Borough Council,Engineering & Special Projects,Supplies and Services,Other Expenses,4705,MARTIN COLLINS JOINERY & GLAZING,A0000623, 12/08/2021,HED0320174,34,N,,N,N/A
Pendle Borough Council,Engineering & Special Projects,,Other Income : Non-VATable,9303,MARTIN COLLINS JOINERY & GLAZING,A0000623, 25/08/2021,HED0320477,218,N,,N,N/A
Pendle Borough Council,Engineering & Special Projects,Transfer Payments,Storage & Homelessness prevention,6104,CAVALIER TAXIS,A0000638, 05/08/2021,HED0320046,70,N,,N,N/A
Pendle Borough Council,Property Services,Premises Related Expense,Bldgs : R & M : Day To Day,2001,J DRIVER LTD,A0000884, 25/08/2021,EST0320501,84,N,,N,N/A
Pendle Borough Council,Property Services,Premises Related Expense,Bldgs : R & M : Day To Day,2001,J DRIVER LTD,A0000884, 25/08/2021,EST0320501,64.5,N,,N,N/A
Pendle Borough Council,Property Services,Premises Related Expense,Bldgs : R & M : Day To Day,2001,J DRIVER LTD,A0000884, 25/08/2021,EST0320501,199.15,N,,N,N/A
Pendle Borough Council,Property Services,Premises Related Expense,Bldgs : R & M : Day To Day,2001,J DRIVER LTD,A0000884, 25/08/2021,EST0320501,102.82,N,,N,N/A
Pendle Borough Council,Parks & Recreation Services,Supplies and Services,Protective Clothing,4201,ENGINEERING & FOUNDRY SUPPLIES,A0001002, 19/08/2021,PCO0320283,30,N,,N,N/A
Pendle Borough Council,Parks & Recreation Services,Supplies and Services,Protective Clothing,4201,ENGINEERING & FOUNDRY SUPPLIES,A0001002, 05/08/2021,PCO0319959,62.25,N,,N,N/A
Pendle Borough Council,Parks & Recreation Services,Supplies and Services,Protective Clothing,4201,ENGINEERING & FOUNDRY SUPPLIES,A0001002, 05/08/2021,PCO0319960,62.25,N,,N,N/A
Pendle Borough Council,Planning & Building Control,Supplies and Services,Protective Clothing,4201,ENGINEERING & FOUNDRY SUPPLIES,A0001002, 12/08/2021,PBC0320218,48.7,N,,N,N/A
Pendle Borough Council,Operational Services,,Stock : Purchases,PJ01,ENGINEERING & FOUNDRY SUPPLIES,A0001002, 19/08/2021,OPS0320231,6.45,N,,N,N/A
Pendle Borough Council,Operational Services,,Stock : Purchases,PJ01,ENGINEERING & FOUNDRY SUPPLIES,A0001002, 05/08/2021,OPS0320014,10.95,N,,N,N/A
Pendle Borough Council,Operational Services,,Stock : Purchases,PJ01,ENGINEERING & FOUNDRY SUPPLIES,A0001002, 05/08/2021,OPS0320017,27.4,N,,N,N/A
Pendle Borough Council,Operational Services,,Stock : Purchases,PJ01,ENGINEERING & FOUNDRY SUPPLIES,A0001002, 12/08/2021,OPS0320125,30,N,,N,N/A
Pendle Borough Council,Operational Services,,Stock : Purchases,PJ01,ENGINEERING & FOUNDRY SUPPLIES,A0001002, 19/08/2021,OPS0320231,30.21,N,,N,N/A
Pendle Borough Council,Operational Services,,Stock : Purchases,PJ01,ENGINEERING & FOUNDRY SUPPLIES,A0001002, 12/08/2021,OPS0320145,36.2,N,,N,N/A
Pendle Borough Council,Operational Services,,Stock : Purchases,PJ01,ENGINEERING & FOUNDRY SUPPLIES,A0001002, 12/08/2021,OPS0320145,50.4,N,,N,N/A
Pendle Borough Council,Operational Services,,Stock : Purchases,PJ01,ENGINEERING & FOUNDRY SUPPLIES,A0001002, 12/08/2021,OPS0320145,75,N,,N,N/A
Pendle Borough Council,Operational Services,,Stock : Purchases,PJ01,ENGINEERING & FOUNDRY SUPPLIES,A0001002, 12/08/2021,OPS0320145,75,N,,N,N/A
Pendle Borough Council,Operational Services,,Stock : Purchases,PJ01,ENGINEERING & FOUNDRY SUPPLIES,A0001002, 12/08/2021,OPS0320145,100.8,N,,N,N/A
Pendle Borough Council,Operational Services,,Stock : Purchases,PJ01,ENGINEERING & FOUNDRY SUPPLIES,A0001002, 12/08/2021,OPS0320145,100.8,N,,N,N/A
Pendle Borough Council,Engineering & Special Projects,Capital Costs,Capital : Payments,CD14,EARBY TOWN COUNCIL,A0001004, 12/08/2021,HED0320210,1732,N,,N,N/A
Pendle Borough Council,Human Resources,Supplies and Services,Legal Fees,4402,FORBES SOLICITORS,A0001117, 12/08/2021,PER0320131,885,N,,N,N/A
Pendle Borough Council,Operational Services,Transport Related Expense,Tprt : Repairs : General,3105,FREIGHT TRANSPORT ASSOCIATION,A0001124, 12/08/2021,OPS0320159,41.25,N,,N,N/A
Pendle Borough Council,Parks & Recreation Services,Transport Related Expense,Tprt : Repairs : General,3105,FREIGHT TRANSPORT ASSOCIATION,A0001124, 12/08/2021,PCO0319822,41.25,N,,N,N/A
Pendle Borough Council,Parks & Recreation Services,Transport Related Expense,Tprt : Repairs : General,3105,GIBSONS GARDEN MACHINERY LTD,A0001201, 19/08/2021,PCO0320325,261.76,N,,N,N/A
Pendle Borough Council,Parks & Recreation Services,Transport Related Expense,Tprt : Repairs : General,3105,GIBSONS GARDEN MACHINERY LTD,A0001201, 19/08/2021,PCO0320327,116.4,N,,N,N/A
Pendle Borough Council,Engineering & Special Projects,Premises Related Expense,Grounds : R & M : Day to Day : Routine,2101,G B SIGNS SOLUTIONS LIMITED,A0001202, 12/08/2021,HED0320209,42.46,N,,N,N/A
Pendle Borough Council,Engineering & Special Projects,Premises Related Expense,Grounds : R & M : Day to Day : Routine,2101,G B SIGNS SOLUTIONS LIMITED,A0001202, 12/08/2021,HED0320209,42.46,N,,N,N/A
Pendle Borough Council,Engineering & Special Projects,Premises Related Expense,Grounds : R & M : Day to Day : Routine,2101,G B SIGNS SOLUTIONS LIMITED,A0001202, 12/08/2021,HED0320209,275.98,N,,N,N/A
Pendle Borough Council,Engineering & Special Projects,Premises Related Expense,Grounds : R & M : Day to Day : Routine,2101,G B SIGNS SOLUTIONS LIMITED,A0001202, 12/08/2021,HED0320209,148.6,N,,N,N/A
Pendle Borough Council,Parks & Recreation Services,Premises Related Expense,Grounds : R & M : Day to Day : Routine,2101,JEWSON LIMITED,A0001323, 19/08/2021,PCO4006444,-23.67,N,,N,N/A
Pendle Borough Council,Parks & Recreation Services,Premises Related Expense,Grounds : R & M : Day to Day : Routine,2101,JEWSON LIMITED,A0001323, 19/08/2021,PCO0320328,4.57,N,,N,N/A
Pendle Borough Council,Parks & Recreation Services,Premises Related Expense,Grounds : R & M : Day to Day : Routine,2101,JEWSON LIMITED,A0001323, 19/08/2021,PCO0320328,14.91,N,,N,N/A
Pendle Borough Council,Parks & Recreation Services,Premises Related Expense,Grounds : R & M : Day to Day : Routine,2101,JEWSON LIMITED,A0001323, 19/08/2021,PCO0320328,20.3,N,,N,N/A
Pendle Borough Council,Parks & Recreation Services,Premises Related Expense,Grounds : R & M : Day to Day : Routine,2101,JEWSON LIMITED,A0001323, 19/08/2021,PCO0320328,23.67,N,,N,N/A
Pendle Borough Council,Parks & Recreation Services,Premises Related Expense,Grounds : R & M : Day to Day : Routine,2101,JEWSON LIMITED,A0001323, 19/08/2021,PCO0320328,26.5,N,,N,N/A
Pendle Borough Council,Parks & Recreation Services,Premises Related Expense,Grounds : R & M : Day to Day : Routine,2101,JEWSON LIMITED,A0001323, 19/08/2021,PCO0320329,30.72,N,,N,N/A
Pendle Borough Council,Parks & Recreation Services,Premises Related Expense,Grounds : R & M : Day to Day : Routine,2101,JEWSON LIMITED,A0001323, 19/08/2021,PCO0320328,42.94,N,,N,N/A
Pendle Borough Council,Parks & Recreation Services,Premises Related Expense,Grounds : R & M : Day to Day : Routine,2101,JEWSON LIMITED,A0001323, 19/08/2021,PCO0320326,80.52,N,,N,N/A
Pendle Borough Council,Operational Services,Supplies and Services,EFM Materials,4004,JEWSON LIMITED,A0001323, 25/08/2021,OPS0320395,60.8,N,,N,N/A
Pendle Borough Council,Operational Services,Premises Related Expense,Bldgs : R & M : Day To Day,2001,J HARGREAVES,A0001359, 12/08/2021,OPS0320153,25,N,,N,N/A
Pendle Borough Council,Engineering & Special Projects,Supplies and Services,EFM Materials,4004,KILLGERM CHEMICALS LTD,A0001624, 25/08/2021,HED0320469,776.66,N,,N,N/A
Pendle Borough Council,Operational Services,Premises Related Expense,Bldgs : R & M : Day To Day,2001,LANLEE SUPPLIES LIMITED,A0001672, 12/08/2021,OPS0320126,11.25,N,,N,N/A
Pendle Borough Council,Parks & Recreation Services,Premises Related Expense,Grounds : R & M : Day to Day : Routine,2101,LANLEE SUPPLIES LIMITED,A0001672, 05/08/2021,PCO0319961,14.34,N,,N,N/A
Pendle Borough Council,Parks & Recreation Services,Transport Related Expense,Tprt : Repairs : General,3105,DICK LEIGH,A0001675, 12/08/2021,PCO0320205,7.8,N,,N,N/A
Pendle Borough Council,Parks & Recreation Services,Transport Related Expense,Tprt : Repairs : General,3105,DICK LEIGH,A0001675, 12/08/2021,PCO0320205,11.14,N,,N,N/A
Pendle Borough Council,Parks & Recreation Services,Transport Related Expense,Tprt : Repairs : General,3105,DICK LEIGH,A0001675, 12/08/2021,PCO0320205,16.29,N,,N,N/A
Pendle Borough Council,Parks & Recreation Services,Transport Related Expense,Tprt : Repairs : General,3105,DICK LEIGH,A0001675, 12/08/2021,PCO0320205,89.89,N,,N,N/A
Pendle Borough Council,Parks & Recreation Services,Transport Related Expense,Tprt : Repairs : General,3105,DICK LEIGH,A0001675, 12/08/2021,PCO0320205,144.48,N,,N,N/A
Pendle Borough Council,Parks & Recreation Services,Transport Related Expense,Tprt : Repairs : General,3105,DICK LEIGH,A0001675, 12/08/2021,PCO0319821,47.5,N,,N,N/A
Pendle Borough Council,Parks & Recreation Services,Transport Related Expense,Tprt : Repairs : General,3105,DICK LEIGH,A0001675, 12/08/2021,PCO0320148,87.43,N,,N,N/A
Pendle Borough Council,Parks & Recreation Services,Transport Related Expense,Tprt : Repairs : General,3105,DICK LEIGH,A0001675, 19/08/2021,PCO0320284,22.43,N,,N,N/A
Pendle Borough Council,Parks & Recreation Services,Transport Related Expense,Diesel Oil,3202,DICK LEIGH,A0001675, 12/08/2021,PCO0320146,96.32,N,,N,N/A
Pendle Borough Council,Engineering & Special Projects,Capital Costs,Capital : Payments,CD14,LANCASHIRE COUNTY COUNCIL,A0001690, 12/08/2021,HED0320206,50,N,,N,N/A
Pendle Borough Council,Engineering & Special Projects,Capital Costs,Capital : Payments,CD14,LANCASHIRE COUNTY COUNCIL,A0001690, 19/08/2021,HED0320369,9710,N,,N,N/A
Pendle Borough Council,Engineering & Special Projects,Capital Costs,Ren Grant : 1996 Act,CH22,LANCASHIRE COUNTY COUNCIL,A0001690, 05/08/2021,HED0320060,3597,N,,N,
Pendle Borough Council,Engineering & Special Projects,Capital Costs,Ren Grant : 1996 Act,CH22,LANCASHIRE COUNTY COUNCIL,A0001690, 05/08/2021,HED0320059,5751.64,N,,N,
Pendle Borough Council,Financial Services,Capital Costs,Ren Grant : 1996 Act,CH22,LANCASHIRE COUNTY COUNCIL,A0001690, 19/08/2021,AAS0320365,6035,N,,N,
Pendle Borough Council,Engineering & Special Projects,Capital Costs,Ren Grant : 1996 Act,CH22,LANCASHIRE COUNTY COUNCIL,A0001690, 05/08/2021,HED0320061,7234,N,,N,
Pendle Borough Council,Engineering & Special Projects,Premises Related Expense,Bldgs : R & M : Day To Day,2001,LIMELIGHT SIGNS LIMITED,A0001796, 12/08/2021,HED0320211,677.4,N,,N,N/A
Pendle Borough Council,Engineering & Special Projects,Premises Related Expense,Grounds : R & M : Day to Day : Routine,2101,LIMELIGHT SIGNS LIMITED,A0001796, 12/08/2021,HED0320211,451.6,N,,N,N/A
Pendle Borough Council,Operational Services,Premises Related Expense,Grounds : R & M : Day to Day : Routine,2101,JOHN MACADAM & SON (RESCUE) LTD,A0001846, 12/08/2021,OPS0320156,120,N,,N,N/A
Pendle Borough Council,Operational Services,Premises Related Expense,Grounds : R & M : Day to Day : Routine,2101,JOHN MACADAM & SON (RESCUE) LTD,A0001846, 12/08/2021,OPS0320157,120,N,,N,N/A
Pendle Borough Council,Operational Services,Premises Related Expense,Grounds : R & M : Day to Day : Routine,2101,JOHN MACADAM & SON (RESCUE) LTD,A0001846, 12/08/2021,OPS0320158,120,N,,N,N/A
Pendle Borough Council,Property Services,Premises Related Expense,Water & Sewerage,2501,WATER PLUS LIMITED,A0001986, 25/08/2021,EST0320497,232.94,N,,N,N/A
Pendle Borough Council,Property Services,Premises Related Expense,Water & Sewerage,2501,WATER PLUS LIMITED,A0001986, 12/08/2021,EST0320181,211.43,N,,N,N/A
Pendle Borough Council,Property Services,Premises Related Expense,Water & Sewerage,2501,WATER PLUS LIMITED,A0001986, 19/08/2021,EST4006447,-47.95,N,,N,N/A
Pendle Borough Council,Property Services,Premises Related Expense,Water & Sewerage,2501,WATER PLUS LIMITED,A0001986, 19/08/2021,EST0320360,24.79,N,,N,N/A
Pendle Borough Council,Property Services,Premises Related Expense,Water & Sewerage,2501,WATER PLUS LIMITED,A0001986, 05/08/2021,EST0320076,67.99,N,,N,N/A
Pendle Borough Council,Property Services,Premises Related Expense,Water & Sewerage,2501,WATER PLUS LIMITED,A0001986, 05/08/2021,EST4006439,-189.23,N,,N,N/A
Pendle Borough Council,Property Services,Premises Related Expense,Water & Sewerage,2501,WATER PLUS LIMITED,A0001986, 05/08/2021,EST0320079,708.25,N,,N,N/A
Pendle Borough Council,Property Services,Premises Related Expense,Water & Sewerage,2501,WATER PLUS LIMITED,A0001986, 25/08/2021,EST0320498,466.54,N,,N,N/A
Pendle Borough Council,Property Services,Premises Related Expense,Water & Sewerage,2501,WATER PLUS LIMITED,A0001986, 25/08/2021,EST0320500,3728.44,N,,N,N/A
Pendle Borough Council,Property Services,Premises Related Expense,Water & Sewerage,2501,WATER PLUS LIMITED,A0001986, 25/08/2021,EST0320502,1782.55,N,,N,N/A
Pendle Borough Council,Property Services,Premises Related Expense,Water & Sewerage,2501,WATER PLUS LIMITED,A0001986, 19/08/2021,EST4006448,-45.11,N,,N,N/A
Pendle Borough Council,Property Services,Premises Related Expense,Water & Sewerage,2501,WATER PLUS LIMITED,A0001986, 19/08/2021,EST0320361,97.24,N,,N,N/A
Pendle Borough Council,Engineering & Special Projects,Premises Related Expense,Grounds : R & M : Day to Day : Routine,2101,PENDLE FROZEN FOODS LTD,A0002087, 05/08/2021,HED0320052,37.14,N,,N,N/A
Pendle Borough Council,Parks & Recreation Services,Transport Related Expense,Tprt : Repairs : General,3105,POWER PIPES (PENDLE) LIMITED,A0002089, 12/08/2021,PCO0319824,67.36,N,,N,N/A
Pendle Borough Council,Engineering & Special Projects,Supplies and Services,Postages,4501,ROYAL MAIL GROUP LIMITED,A0002281, 19/08/2021,HED0320345,84.14,N,,N,N/A
Pendle Borough Council,Engineering & Special Projects,Supplies and Services,Postages,4501,ROYAL MAIL GROUP LIMITED,A0002281, 19/08/2021,HED0320345,113.52,N,,N,N/A
Pendle Borough Council,Engineering & Special Projects,Supplies and Services,Postages,4501,ROYAL MAIL GROUP LIMITED,A0002281, 19/08/2021,HED0320345,8.28,N,,N,N/A
Pendle Borough Council,Engineering & Special Projects,Supplies and Services,Postages,4501,ROYAL MAIL GROUP LIMITED,A0002281, 19/08/2021,HED0320345,20.8,N,,N,N/A
Pendle Borough Council,Engineering & Special Projects,Supplies and Services,Postages,4501,ROYAL MAIL GROUP LIMITED,A0002281, 19/08/2021,HED0320345,10.78,N,,N,N/A
Pendle Borough Council,Engineering & Special Projects,Supplies and Services,Postages,4501,ROYAL MAIL GROUP LIMITED,A0002281, 19/08/2021,HED0320345,50.8,N,,N,N/A
Pendle Borough Council,Engineering & Special Projects,Supplies and Services,Postages,4501,ROYAL MAIL GROUP LIMITED,A0002281, 19/08/2021,HED0320345,207.78,N,,N,N/A
Pendle Borough Council,Engineering & Special Projects,Supplies and Services,Postages,4501,ROYAL MAIL GROUP LIMITED,A0002281, 19/08/2021,HED0320345,262.97,N,,N,N/A
Pendle Borough Council,Engineering & Special Projects,Supplies and Services,Postages,4501,ROYAL MAIL GROUP LIMITED,A0002281, 19/08/2021,HED0320345,17.97,N,,N,N/A
Pendle Borough Council,Engineering & Special Projects,Supplies and Services,Postages,4501,ROYAL MAIL GROUP LIMITED,A0002281, 19/08/2021,HED0320345,354.56,N,,N,N/A
Pendle Borough Council,Engineering & Special Projects,Supplies and Services,Postages,4501,ROYAL MAIL GROUP LIMITED,A0002281, 19/08/2021,HED0320345,95.48,N,,N,N/A
Pendle Borough Council,Engineering & Special Projects,Supplies and Services,Other Expenses,4705,ROYAL MAIL GROUP LIMITED,A0002281, 19/08/2021,HED0320345,33,N,,N,N/A
Pendle Borough Council,Operational Services,Agency Staff,Emp : Agency Wages,1004,STANLEY BROTHERS (TIPPERS) LTD,A0002422, 19/08/2021,OPS0320227,640,N,,N,N/A
Pendle Borough Council,Operational Services,Transport Related Expense,Tprt : Annual Hire Charge,3601,STANLEY BROTHERS (TIPPERS) LTD,A0002422, 19/08/2021,OPS0320230,2310,N,,N,N/A
Pendle Borough Council,Operational Services,,Stock : Purchases,PJ01,SPALDINGS (UK) LTD,A0002537, 05/08/2021,OPS0320016,80,N,,N,N/A
Pendle Borough Council,Operational Services,,Stock : Purchases,PJ01,SPALDINGS (UK) LTD,A0002537, 25/08/2021,OPS0320416,160,N,,N,N/A
Pendle Borough Council,Engineering & Special Projects,Supplies and Services,Publicity & advertisement,4704,TRISTAR PRINTERS LTD,A0002731, 25/08/2021,HED0320475,184,N,,N,N/A
Pendle Borough Council,Engineering & Special Projects,,Paid in the Year,PD03,TRISTAR PRINTERS LTD,A0002731, 25/08/2021,HED0320472,584,N,,N,N/A
Pendle Borough Council,Operational Services,Agency Staff,Emp : Agency Wages,1004,DHRB LIMITED T/A DRIVER HIRE (45680),A0003556, 12/08/2021,OPS0320160,315,N,,N,N/A
Pendle Borough Council,Operational Services,Agency Staff,Emp : Agency Wages,1004,DHRB LIMITED T/A DRIVER HIRE (45680),A0003556, 19/08/2021,OPS0320337,508.72,N,,N,N/A
Pendle Borough Council,Operational Services,Agency Staff,Emp : Agency Wages,1004,DHRB LIMITED T/A DRIVER HIRE (45680),A0003556, 12/08/2021,OPS0320136,621.78,N,,N,N/A
Pendle Borough Council,Operational Services,Agency Staff,Emp : Agency Wages,1004,DHRB LIMITED T/A DRIVER HIRE (45680),A0003556, 12/08/2021,OPS0320154,627.83,N,,N,N/A
Pendle Borough Council,Operational Services,Agency Staff,Emp : Agency Wages,1004,DHRB LIMITED T/A DRIVER HIRE (45680),A0003556, 12/08/2021,OPS0320160,312.83,N,,N,N/A
Pendle Borough Council,Engineering & Special Projects,Supplies and Services,Mobile Phones,4508,EE LIMITED,A0004680, 19/08/2021,HED4006445,-100,N,,N,N/A
Pendle Borough Council,Engineering & Special Projects,Supplies and Services,Mobile Phones,4508,EE LIMITED,A0004680, 19/08/2021,HED0320343,332,N,,N,N/A
Pendle Borough Council,Engineering & Special Projects,Supplies and Services,Mobile Phones,4508,EE LIMITED,A0004680, 19/08/2021,HED4006446,-100,N,,N,N/A
Pendle Borough Council,Engineering & Special Projects,Supplies and Services,Mobile Phones,4508,EE LIMITED,A0004680, 19/08/2021,HED0320344,332,N,,N,N/A
Pendle Borough Council,Parks & Recreation Services,Transport Related Expense,Tprt : Repairs : General,3105,F G ROWLAND LIMITED,A0006489, 12/08/2021,PCO0320093,1612,N,,N,N/A
Pendle Borough Council,Engineering & Special Projects,Indirect Employee Expenses,Staff Refreshments,1261,PHILIP SANDERSON,A0006611, 12/08/2021,HED0320168,23.08,N,,N,N/A
Pendle Borough Council,Engineering & Special Projects,Supplies and Services,Hospitality,4611,PHILIP SANDERSON,A0006611, 12/08/2021,HED0320168,23.07,N,,N,N/A
Pendle Borough Council,Operational Services,Transport Related Expense,Tprt : Repairs : General,3105,R REEVE AUTO BODIES,A0009824, 27/08/2021,OPS0320459,135.42,N,,N,N/A
Pendle Borough Council,Human Resources,Indirect Employee Expenses,Recruitment,1221,NORTH WESTERN EMPLOYERS ORGANISATION,A0010430, 19/08/2021,PER0320307,7600,N,,N,N/A
Pendle Borough Council,Engineering & Special Projects,Supplies and Services,Mayoral Expenses,4614,PENDLE LEISURE LIMITED,A0012961, 05/08/2021,HED0320065,165,N,XR43029,N,N/A
Pendle Borough Council,Engineering & Special Projects,Supplies and Services,Miscellaneous : Other,4707,PENDLE LEISURE LIMITED,A0012961, 12/08/2021,HED0320124,5669,N,XR43029,N,N/A
Pendle Borough Council,Parks & Recreation Services,Agency Staff,Emp : Agency Wages,1004,LANDSCAPE ENGINEERING LTD,A0013135, 25/08/2021,PCO0320406,2890,N,,N,N/A
Pendle Borough Council,Parks & Recreation Services,Agency Staff,Emp : Agency Wages,1004,LANDSCAPE ENGINEERING LTD,A0013135, 25/08/2021,PCO0320405,4150,N,,N,N/A
Pendle Borough Council,Parks & Recreation Services,Supplies and Services,Sub-Contractors,4007,LANDSCAPE ENGINEERING LTD,A0013135, 25/08/2021,PCO0320408,2900,N,,N,N/A
Pendle Borough Council,Parks & Recreation Services,Supplies and Services,Sub-Contractors,4007,LANDSCAPE ENGINEERING LTD,A0013135, 25/08/2021,PCO0320409,4100,N,,N,N/A
Pendle Borough Council,Operational Services,Supplies and Services,EFM Materials,4004,ORCHARD RECYCLING SERVICE,A0015803, 12/08/2021,OPS0320144,2846.3,N,,N,N/A
Pendle Borough Council,Operational Services,Supplies and Services,Sub-Contractors,4007,ORCHARD RECYCLING SERVICE,A0015803, 05/08/2021,OPS0320045,2363.9,N,,N,N/A
Pendle Borough Council,Operational Services,Supplies and Services,Sub-Contractors,4007,ORCHARD RECYCLING SERVICE,A0015803, 25/08/2021,OPS0320426,2843,N,,N,N/A
Pendle Borough Council,Operational Services,Supplies and Services,Sub-Contractors,4007,ORCHARD RECYCLING SERVICE,A0015803, 19/08/2021,OPS0320331,3054.9,N,,N,N/A
Pendle Borough Council,Operational Services,Supplies and Services,Miscellaneous : Other,4707,ORCHARD RECYCLING SERVICE,A0015803, 05/08/2021,OPS0320045,256,N,,N,N/A
Pendle Borough Council,Operational Services,Agency Costs,Fast Action Response,5009,ORCHARD RECYCLING SERVICE,A0015803, 05/08/2021,OPS0320045,256,N,,N,N/A
Pendle Borough Council,Engineering & Special Projects,Premises Related Expense,Bldgs : R & M : Abnormal,2002,DRAIN BUSTERS,A0021656, 12/08/2021,HED0320175,90,N,,N,N/A
Pendle Borough Council,Operational Services,Supplies and Services,Sub-Contractors,4007,ASPEN VALLEY KENNELS & CATTERY,A0022106, 12/08/2021,OPS0320135,825,N,,N,N/A
Pendle Borough Council,Operational Services,Supplies and Services,Other Expenses,4705,ASPEN VALLEY KENNELS & CATTERY,A0022106, 12/08/2021,OPS0320135,927.6,N,,N,N/A
Pendle Borough Council,Property Services,Premises Related Expense,Electricity,2203,E.ON,A0023073, 05/08/2021,EST0320075,6.31,N,,N,N/A
Pendle Borough Council,Property Services,Premises Related Expense,Electricity,2203,E.ON,A0023073, 12/08/2021,EST0320179,264.09,N,,N,N/A
Pendle Borough Council,Property Services,Premises Related Expense,Electricity,2203,E.ON,A0023073, 12/08/2021,EST0320185,3.22,N,,N,N/A
Pendle Borough Council,Property Services,Premises Related Expense,Electricity,2203,E.ON,A0023073, 19/08/2021,EST0320362,4.34,N,,N,N/A
Pendle Borough Council,Property Services,Premises Related Expense,Electricity,2203,E.ON,A0023073, 25/08/2021,EST0320489,4.34,N,,N,N/A
Pendle Borough Council,Property Services,Premises Related Expense,Electricity,2203,E.ON,A0023073, 25/08/2021,EST0320493,4.34,N,,N,N/A
Pendle Borough Council,Property Services,Premises Related Expense,Electricity,2203,E.ON,A0023073, 25/08/2021,EST0320488,5.04,N,,N,N/A
Pendle Borough Council,Property Services,Premises Related Expense,Electricity,2203,E.ON,A0023073, 12/08/2021,EST0320184,8.12,N,,N,N/A
Pendle Borough Council,Property Services,Premises Related Expense,Electricity,2203,E.ON,A0023073, 12/08/2021,EST0320187,8.68,N,,N,N/A
Pendle Borough Council,Engineering & Special Projects,Supplies and Services,Other Expenses,4705,GRADKO INTERNATIONAL LTD,A0025806, 25/08/2021,HED0320468,191,N,,N,N/A
Pendle Borough Council,Parks & Recreation Services,Premises Related Expense,Bldgs : R & M : Day To Day,2001,BRITISH TELECOMMUNICATIONS PLC,A0040001, 19/08/2021,PCO0320330,138.9,N,,N,N/A
Pendle Borough Council,Engineering & Special Projects,Supplies and Services,EFM : Photocopiers,4001,CANON (UK) LIMITED,A0040400, 12/08/2021,HED0319930,41.04,N,,N,N/A
Pendle Borough Council,Democratic & Legal Services,Supplies and Services,Printing & Stationery,4301,CIVICA ELECTION SERVICES,A0041321, 05/08/2021,DAL0320047,5988.89,N,,N,N/A
Pendle Borough Council,Democratic & Legal Services,Supplies and Services,Printing & Stationery,4301,CIVICA ELECTION SERVICES,A0041321, 05/08/2021,DAL0320047,5988.89,N,,N,N/A
Pendle Borough Council,Democratic & Legal Services,Supplies and Services,Printing & Stationery,4301,CIVICA ELECTION SERVICES,A0041321, 05/08/2021,DAL0320047,7186.68,N,,N,N/A
Pendle Borough Council,Democratic & Legal Services,Supplies and Services,Postages,4501,CIVICA ELECTION SERVICES,A0041321, 05/08/2021,DAL0320047,3239.1,N,,N,N/A
Pendle Borough Council,Democratic & Legal Services,Supplies and Services,Postages,4501,CIVICA ELECTION SERVICES,A0041321, 05/08/2021,DAL0320047,3239.1,N,,N,N/A
Pendle Borough Council,Democratic & Legal Services,Supplies and Services,Postages,4501,CIVICA ELECTION SERVICES,A0041321, 05/08/2021,DAL0320047,3886.92,N,,N,N/A
Pendle Borough Council,Parks & Recreation Services,Premises Related Expense,Grounds : R & M : Day to Day : Routine,2101,C & R WALNE ENGRAVERS,A0042734, 05/08/2021,PCO0320027,36,N,,N,N/A
Pendle Borough Council,Parks & Recreation Services,Premises Related Expense,Grounds : R & M : Day to Day : Routine,2101,C & R WALNE ENGRAVERS,A0042734, 05/08/2021,PCO0320033,36,N,,N,N/A
Pendle Borough Council,Parks & Recreation Services,Premises Related Expense,Grounds : R & M : Day to Day : Routine,2101,C & R WALNE ENGRAVERS,A0042734, 05/08/2021,PCO0320025,36,N,,N,N/A
Pendle Borough Council,Parks & Recreation Services,Premises Related Expense,Grounds : R & M : Day to Day : Routine,2101,C & R WALNE ENGRAVERS,A0042734, 05/08/2021,PCO0320026,36,N,,N,N/A
Pendle Borough Council,Operational Services,Supplies and Services,EFM Materials,4004,S M SHEPHERD BUILDING CONTRACTORS,A0044037, 05/08/2021,OPS0320013,120,N,,N,N/A
Pendle Borough Council,Operational Services,Supplies and Services,EFM Materials,4004,S M SHEPHERD BUILDING CONTRACTORS,A0044037, 05/08/2021,OPS0320013,120,N,,N,N/A
Pendle Borough Council,Operational Services,Supplies and Services,Sub-Contractors,4007,S M SHEPHERD BUILDING CONTRACTORS,A0044037, 19/08/2021,OPS0320226,140,N,,N,N/A
Pendle Borough Council,Operational Services,Supplies and Services,Sub-Contractors,4007,S M SHEPHERD BUILDING CONTRACTORS,A0044037, 25/08/2021,OPS0320393,170,N,,N,N/A
Pendle Borough Council,Operational Services,,Paid in the Year,PD03,S M SHEPHERD BUILDING CONTRACTORS,A0044037, 05/08/2021,OPS0320035,180,N,,N,N/A
Pendle Borough Council,Operational Services,,Paid in the Year,PD03,S M SHEPHERD BUILDING CONTRACTORS,A0044037, 05/08/2021,OPS0320035,180,N,,N,N/A
Pendle Borough Council,Property Services,Premises Related Expense,Electricity,2203,E.ON UK PLC,A0044040, 12/08/2021,EST0320192,319.44,N,,N,N/A
Pendle Borough Council,Parks & Recreation Services,Capital Costs,Capital : Payments,CD14,SUTCLIFFE PLAY LTD,A0045788, 05/08/2021,PCO0320028,1312.93,N,,N,N/A
Pendle Borough Council,Operational Services,Premises Related Expense,Grounds : R & M : Day to Day : Routine,2101,LOOP PUBLISHING LTD,A0047429, 05/08/2021,OPS0320019,275,N,,N,N/A
Pendle Borough Council,Engineering & Special Projects,Supplies and Services,Publicity & advertisement,4704,LOOP PUBLISHING LTD,A0047429, 05/08/2021,HED0320086,200,N,,N,N/A
Pendle Borough Council,Engineering & Special Projects,Supplies and Services,Publicity & advertisement,4704,LOOP PUBLISHING LTD,A0047429, 05/08/2021,HED0320067,250,N,,N,N/A
Pendle Borough Council,Planning & Building Control,Supplies and Services,EFM : Other Equipment,4003,VIP SYSTEM LIMITED,A0050529, 12/08/2021,PBC0320201,856.14,N,,N,N/A
Pendle Borough Council,Planning & Building Control,Supplies and Services,EFM : Other Equipment,4003,VIP SYSTEM LIMITED,A0050529, 12/08/2021,PBC0320201,52.07,N,,N,N/A
Pendle Borough Council,Parks & Recreation Services,Transport Related Expense,Tprt : Repairs : General,3105,CAMPEY TURF CARE SYSTEMS,A0050717, 19/08/2021,PCO0320322,48.85,N,,N,N/A
Pendle Borough Council,Parks & Recreation Services,Transport Related Expense,Tprt : Repairs : General,3105,CAMPEY TURF CARE SYSTEMS,A0050717, 12/08/2021,PCO0320087,191.92,N,,N,N/A
Pendle Borough Council,Operational Services,Premises Related Expense,Grounds : R & M : Day to Day : Routine,2101,LIBERATA UK LTD,A0051618, 12/08/2021,OPS0320133,850.2,N,,N,N/A
Pendle Borough Council,Operational Services,Supplies and Services,EFM Materials,4004,LIBERATA UK LTD,A0051618, 12/08/2021,OPS0320162,1533.6,N,,N,N/A
Pendle Borough Council,Financial Services,Agency Costs,Liberata,5301,LIBERATA UK LTD,A0051618, 12/08/2021,AAS0320224,800,N,,N,N/A
Pendle Borough Council,Financial Services,Agency Costs,Liberata,5301,LIBERATA UK LTD,A0051618, 12/08/2021,AAS0320225,3762.66,N,,N,N/A
Pendle Borough Council,Financial Services,Agency Costs,Liberata,5301,LIBERATA UK LTD,A0051618, 12/08/2021,AAS0320223,15050.64,N,,N,N/A
Pendle Borough Council,Financial Services,Agency Costs,#N/A,5303,LIBERATA UK LTD,A0051618, 13/08/2021,AAS0320680,6666.67,N,,N,N/A
Pendle Borough Council,Financial Services,Agency Costs,#N/A,5303,LIBERATA UK LTD,A0051618, 13/08/2021,AAS0320680,31805.19,N,,N,N/A
Pendle Borough Council,Financial Services,Agency Costs,#N/A,5303,LIBERATA UK LTD,A0051618, 13/08/2021,AAS0320680,28189.74,N,,N,N/A
Pendle Borough Council,Financial Services,Agency Costs,#N/A,5303,LIBERATA UK LTD,A0051618, 13/08/2021,AAS0320680,81006.65,N,,N,N/A
Pendle Borough Council,Financial Services,Agency Costs,#N/A,5303,LIBERATA UK LTD,A0051618, 13/08/2021,AAS0320680,55872.47,N,,N,N/A
Pendle Borough Council,Financial Services,Agency Costs,#N/A,5303,LIBERATA UK LTD,A0051618, 13/08/2021,AAS0320680,82761.12,N,,N,N/A
Pendle Borough Council,Financial Services,Agency Costs,#N/A,5303,LIBERATA UK LTD,A0051618, 13/08/2021,AAS0320680,125118.52,N,,N,N/A
Pendle Borough Council,Engineering & Special Projects,Capital Costs,Ren Grant : 1996 Act,CH22,LIBERATA UK LTD,A0051618, 19/08/2021,HED0320372,4135.52,N,,N,
Pendle Borough Council,Property Services,Premises Related Expense,Electricity,2203,SOUTHERN ELECTRIC,A0051726, 12/08/2021,EST0320193,196.58,N,,N,N/A
Pendle Borough Council,Engineering & Special Projects,,Paid in the Year,PD03,STEPHEN GARNETT,A0051730, 05/08/2021,HED0320054,350,N,,N,N/A
Pendle Borough Council,Human Resources,Supplies and Services,EFM : Other Equipment,4003,FIDELITI LIMITED,A0052058, 12/08/2021,PER0320129,0.9,N,,N,N/A
Pendle Borough Council,Parks & Recreation Services,Premises Related Expense,Bldgs : R & M : Day To Day,2001,ARCOL ENGINEERING LTD,A0052060, 19/08/2021,PCO0320280,880,N,,N,N/A
Pendle Borough Council,Parks & Recreation Services,Premises Related Expense,Grounds : R & M : Day to Day : Routine,2101,ARCOL ENGINEERING LTD,A0052060, 19/08/2021,PCO0320282,60,N,,N,N/A
Pendle Borough Council,Parks & Recreation Services,Premises Related Expense,Grounds : R & M : Day to Day : Routine,2101,ARCOL ENGINEERING LTD,A0052060, 19/08/2021,PCO0320282,85,N,,N,N/A
Pendle Borough Council,Parks & Recreation Services,Premises Related Expense,Grounds : R & M : Day to Day : Routine,2101,ARCOL ENGINEERING LTD,A0052060, 19/08/2021,PCO0320280,240,N,,N,N/A
Pendle Borough Council,Parks & Recreation Services,Transport Related Expense,Tprt : Repairs : General,3105,ARCOL ENGINEERING LTD,A0052060, 19/08/2021,PCO0320281,600,N,,N,N/A
Pendle Borough Council,Operational Services,Capital Costs,Capital : Payments,CD14,MGB PLASTICS LIMITED,A0052535, 19/08/2021,OPS0320332,4995,N,,N,N/A
Pendle Borough Council,Operational Services,Capital Costs,Capital : Payments,CD14,MGB PLASTICS LIMITED,A0052535, 19/08/2021,OPS0320333,9990,N,,N,N/A
Pendle Borough Council,Operational Services,Capital Costs,Capital : Payments,CD14,MGB PLASTICS LIMITED,A0052535, 25/08/2021,OPS0320417,9990,N,,N,N/A
Pendle Borough Council,Operational Services,Capital Costs,Capital : Payments,CD14,MGB PLASTICS LIMITED,A0052535, 25/08/2021,OPS0320418,9990,N,,N,N/A
Pendle Borough Council,Financial Services,Supplies and Services,Consultants Fees,4401,L G FUTURES LIMITED,A0056113, 25/08/2021,AAS0320513,4000,N,,N,N/A
Pendle Borough Council,Parks & Recreation Services,Transport Related Expense,Tprt : Repairs : General,3105,HYDRAIR,A0056976, 25/08/2021,PCO0320410,160.25,N,,N,N/A
Pendle Borough Council,Parks & Recreation Services,Premises Related Expense,Grounds : R & M : Day to Day : Routine,2101,A BINNS & CO,A0057121, 05/08/2021,PCO0320022,120,N,,N,N/A
Pendle Borough Council,Parks & Recreation Services,Premises Related Expense,Grounds : R & M : Day to Day : Routine,2101,A BINNS & CO,A0057121, 05/08/2021,PCO0320022,220,N,,N,N/A
Pendle Borough Council,Parks & Recreation Services,Premises Related Expense,Grounds : R & M : Day to Day : Routine,2101,A BINNS & CO,A0057121, 05/08/2021,PCO0320022,275,N,,N,N/A
Pendle Borough Council,Parks & Recreation Services,Premises Related Expense,Grounds : R & M : Day to Day : Routine,2101,A BINNS & CO,A0057121, 05/08/2021,PCO0320022,330,N,,N,N/A
Pendle Borough Council,Parks & Recreation Services,Premises Related Expense,Grounds : R & M : Day to Day : Routine,2101,A BINNS & CO,A0057121, 05/08/2021,PCO0320022,360,N,,N,N/A
Pendle Borough Council,Property Services,Premises Related Expense,Gas,2202,BRITISH GAS,A0057202, 05/08/2021,EST0320078,15.36,N,,N,N/A
Pendle Borough Council,Property Services,Premises Related Expense,Electricity,2203,BRITISH GAS,A0057202, 12/08/2021,EST0320180,4.31,N,,N,N/A
Pendle Borough Council,Engineering & Special Projects,Supplies and Services,EFM : Office and computer equipment,4002,CIVICA UK LIMITED,A0057596, 12/08/2021,HED0320173,600,N,,N,N/A
Pendle Borough Council,Operational Services,Transport Related Expense,Tprt : Repairs : General,3105,UNITED UTILITIES,A0059246, 12/08/2021,OPS0320134,21.32,N,,N,N/A
Pendle Borough Council,Operational Services,Transport Related Expense,Tprt : Repairs : General,3105,UNITED UTILITIES,A0059246, 12/08/2021,OPS0320134,35.05,N,,N,N/A
Pendle Borough Council,Engineering & Special Projects,Agency Costs,Lancashire C C,5102,NSL LIMITED,A0059256, 05/08/2021,HED0320066,1954.8,N,,N,N/A
Pendle Borough Council,Engineering & Special Projects,Supplies and Services,Adverts : Statutory Notice,4702,JPIMEDIA PUBLISHING LIMITED,A0059640, 12/08/2021,HED0320195,291.6,N,,N,N/A
Pendle Borough Council,Engineering & Special Projects,Supplies and Services,Adverts : Statutory Notice,4702,JPIMEDIA PUBLISHING LIMITED,A0059640, 25/08/2021,HED0320474,315.9,N,,N,N/A
Pendle Borough Council,Engineering & Special Projects,Supplies and Services,Adverts : Statutory Notice,4702,JPIMEDIA PUBLISHING LIMITED,A0059640, 19/08/2021,HED0320342,340.2,N,,N,N/A
Pendle Borough Council,Engineering & Special Projects,Transfer Payments,Accommodation ,6103,HILL VIEW (PRIVATE) HOTEL,A0059754, 05/08/2021,HED0320048,20490,N,,N,N/A
Pendle Borough Council,Operational Services,Supplies and Services,EFM Materials,4004,CONTAINER CARE SOLUTIONS LIMITED,A0061112, 05/08/2021,OPS0320044,116,N,,N,N/A
Pendle Borough Council,Operational Services,Supplies and Services,EFM Materials,4004,CONTAINER CARE SOLUTIONS LIMITED,A0061112, 19/08/2021,OPS0320229,170,N,,N,N/A
Pendle Borough Council,Operational Services,Supplies and Services,EFM Materials,4004,CONTAINER CARE SOLUTIONS LIMITED,A0061112, 05/08/2021,OPS0320044,390,N,,N,N/A
Pendle Borough Council,Operational Services,Supplies and Services,EFM Materials,4004,CONTAINER CARE SOLUTIONS LIMITED,A0061112, 05/08/2021,OPS0320044,390,N,,N,N/A
Pendle Borough Council,Operational Services,Supplies and Services,EFM Materials,4004,CONTAINER CARE SOLUTIONS LIMITED,A0061112, 19/08/2021,OPS0320229,680,N,,N,N/A
Pendle Borough Council,Operational Services,Supplies and Services,EFM Materials,4004,CONTAINER CARE SOLUTIONS LIMITED,A0061112, 05/08/2021,OPS0320044,850,N,,N,N/A
Pendle Borough Council,Engineering & Special Projects,Capital Costs,Capital : Payments,CD14,PENDLE ENTERPRISE & REGENERATION LTD,A0061803, 05/08/2021,HED0320063,88000,N,,N,N/A
Pendle Borough Council,Property Services,Premises Related Expense,Electricity,2203,SCOTTISH POWER,A0063942, 25/08/2021,EST0320492,81.1,N,,N,N/A
Pendle Borough Council,Engineering & Special Projects,,Govt Grant,9130,SAFENET DOMESTIC ABUSE AND SUPPORT SERVICES LTD,A0065516, 19/08/2021,HED0320309,15000,N,,N,N/A
Pendle Borough Council,Property Services,Premises Related Expense,Bldgs : R & M : Day To Day,2001,SPEAKMAN CONTRACTORS LTD,A0066581, 19/08/2021,EST0320366,50.81,N,,N,N/A
Pendle Borough Council,Property Services,Premises Related Expense,Bldgs : R & M : Day To Day,2001,SPEAKMAN CONTRACTORS LTD,A0066581, 19/08/2021,EST0320366,1686.85,N,,N,N/A
Pendle Borough Council,Property Services,Supplies and Services,EFM : Other Equipment,4003,SPEAKMAN CONTRACTORS LTD,A0066581, 19/08/2021,EST0320366,605.28,N,,N,N/A
Pendle Borough Council,Property Services,Supplies and Services,EFM : Other Equipment,4003,SPEAKMAN CONTRACTORS LTD,A0066581, 19/08/2021,EST0320366,3241.6,N,,N,N/A
Pendle Borough Council,Property Services,Capital Costs,Capital : Payments,CD14,SPEAKMAN CONTRACTORS LTD,A0066581, 19/08/2021,EST0320366,172.66,N,,N,N/A
Pendle Borough Council,Property Services,Capital Costs,Capital : Payments,CD14,SPEAKMAN CONTRACTORS LTD,A0066581, 25/08/2021,EST0320495,6727,N,,N,N/A
Pendle Borough Council,Engineering & Special Projects,Premises Related Expense,Grounds : R & M : Day to Day : Routine,2101,LIVESEY BUILDING MAINTENANCE CONTRACTORS,A0066865, 05/08/2021,HED0320055,150,N,,N,N/A
Pendle Borough Council,Engineering & Special Projects,Premises Related Expense,Grounds : R & M : Day to Day : Routine,2101,LIVESEY BUILDING MAINTENANCE CONTRACTORS,A0066865, 05/08/2021,HED0320057,660,N,,N,N/A
Pendle Borough Council,Engineering & Special Projects,Premises Related Expense,Grounds : R & M : Day to Day : Routine,2101,LIVESEY BUILDING MAINTENANCE CONTRACTORS,A0066865, 05/08/2021,HED0320057,1300,N,,N,N/A
Pendle Borough Council,Engineering & Special Projects,Capital Costs,Capital : Payments,CD14,LIVESEY BUILDING MAINTENANCE CONTRACTORS,A0066865, 05/08/2021,HED0320056,195,N,,N,N/A
Pendle Borough Council,Human Resources,Indirect Employee Expenses,Emp : Medical Expenses,1236,PEOPLE ASSET MANAGEMENT LIMITED,A0067613, 19/08/2021,PER0320305,362.5,N,,N,N/A
Pendle Borough Council,Engineering & Special Projects,Supplies and Services,LCC Levy (Admins Costs),4419,PATROL,A0067663, 19/08/2021,HED0320357,29.7,N,,N,N/A
Pendle Borough Council,Operational Services,Transport Related Expense,Tprt : Repairs : General,3105,PROBRUSH T/A NORTHERN MUNICIPAL SPARES LTD,A0068263, 12/08/2021,OPS0320127,1580.63,N,,N,N/A
Pendle Borough Council,Financial Services,Supplies and Services,#N/A,4424,CHIPSIDE LTD,A0068587, 25/08/2021,AAS4006432,-185.91,N,,N,N/A
Pendle Borough Council,Engineering & Special Projects,Supplies and Services,#N/A,4424,CHIPSIDE LTD,A0068587, 25/08/2021,HED0320167,7,N,,N,N/A
Pendle Borough Council,Engineering & Special Projects,Supplies and Services,#N/A,4424,CHIPSIDE LTD,A0068587, 25/08/2021,HED0318928,9.78,N,,N,N/A
Pendle Borough Council,Engineering & Special Projects,Supplies and Services,#N/A,4424,CHIPSIDE LTD,A0068587, 25/08/2021,HED0320470,116.49,N,,N,N/A
Pendle Borough Council,Engineering & Special Projects,Supplies and Services,#N/A,4424,CHIPSIDE LTD,A0068587, 25/08/2021,HED0319836,163.74,N,,N,N/A
Pendle Borough Council,Parks & Recreation Services,Supplies and Services,Expenditure : Materials,0002,M C & M A STEWART HAULAGE,A0068863, 12/08/2021,PCO0320089,490,N,,N,N/A
Pendle Borough Council,Parks & Recreation Services,Supplies and Services,Expenditure : Materials,0002,M C & M A STEWART HAULAGE,A0068863, 12/08/2021,PCO0320090,1966.14,N,,N,N/A
Pendle Borough Council,Engineering & Special Projects,Supplies and Services,Seminars etc All Costs,4601,RH ENVIRONMENTAL LTD,A0069532, 05/08/2021,HED0320062,290,N,,N,N/A
Pendle Borough Council,Financial Services,Supplies and Services,Subscriptions & Donations,4706,DISTRICT COUNCILS NETWORK,A0069643, 25/08/2021,AAS0320516,1376,N,,N,N/A
Pendle Borough Council,Planning & Building Control,Supplies and Services,EFM : Other Equipment,4003,ID MANAGEMENT SYSTEMS,A0069768, 12/08/2021,PBC0320219,84.57,N,,N,N/A
Pendle Borough Council,Engineering & Special Projects,Capital Costs,Capital : Payments,CD14,PEARL 2,A0070545, 19/08/2021,HED0320380,35000,N,,N,N/A
Pendle Borough Council,Operational Services,Capital Costs,Capital : Payments,CD14,CRAEMER UK LIMITED,A0070869, 05/08/2021,OPS0320015,45,N,,N,N/A
Pendle Borough Council,Operational Services,Capital Costs,Capital : Payments,CD14,CRAEMER UK LIMITED,A0070869, 05/08/2021,OPS0320015,190,N,,N,N/A
Pendle Borough Council,Financial Services,Supplies and Services,Sub-Contractors,4007,QHS SOLUTIONS LIMITED,A0071912, 25/08/2021,AAS0320486,666.66,N,,N,N/A
Pendle Borough Council,Financial Services,Supplies and Services,Seminars etc All Costs,4601,PROACTIS LTD,A0072574, 19/08/2021,AAS0320378,2200,N,,N,N/A
Pendle Borough Council,Operational Services,Supplies and Services,Sub-Contractors,4007,RENTOKIL INITIAL UK LIMITED,A0072816, 12/08/2021,OPS0320155,162.94,N,,N,N/A
Pendle Borough Council,Operational Services,Supplies and Services,Sub-Contractors,4007,RENTOKIL INITIAL UK LIMITED,A0072816, 12/08/2021,OPS0320155,27.69,N,,N,N/A
Pendle Borough Council,Parks & Recreation Services,Transport Related Expense,Tprt : Repairs : General,3105,REACTEC LIMITED,A0072817, 19/08/2021,PCO0320323,283.5,N,,N,N/A
Pendle Borough Council,Operational Services,Agency Costs,Refuse Collection DLO,5005,C & C PROCESS SERVERS,A0074728, 19/08/2021,OPS0320335,85,N,,N,N/A
Pendle Borough Council,Engineering & Special Projects,Supplies and Services,Printing & Stationery,4301,THOMSON REUTERS PROFESSIONAL UK LIMITED,A0077400, 12/08/2021,HED0320176,144,N,,N,N/A
Pendle Borough Council,Engineering & Special Projects,Supplies and Services,Printing & Stationery,4301,THOMSON REUTERS PROFESSIONAL UK LIMITED,A0077400, 12/08/2021,HED0320176,144,N,,N,N/A
Pendle Borough Council,Engineering & Special Projects,,Govt Grant,9130,POSITIVE ACTION IN THE COMMUNITY,A0081553, 19/08/2021,HED0320310,15000,Y,1088536,N,N/A
Pendle Borough Council,Parks & Recreation Services,Transport Related Expense,Petrol,3201,TATE FUEL OILS LIMITED,A0082819, 05/08/2021,PCO0320029,1748.36,N,,N,N/A
Pendle Borough Council,Parks & Recreation Services,Transport Related Expense,Diesel Oil,3202,TATE FUEL OILS LIMITED,A0082819, 05/08/2021,PCO0320030,2038.98,N,,N,N/A
Pendle Borough Council,Engineering & Special Projects,Supplies and Services,Other Expenses,4705,FOOD SAFETY DIRECT LIMITED,A0083616, 25/08/2021,HED0320473,303,N,,N,N/A
Pendle Borough Council,Operational Services,Supplies and Services,Other Expenses,4705,FOOD SAFETY DIRECT LIMITED,A0083616, 19/08/2021,OPS0320334,2.99,N,,N,N/A
Pendle Borough Council,Operational Services,Supplies and Services,Other Expenses,4705,FOOD SAFETY DIRECT LIMITED,A0083616, 19/08/2021,OPS0320334,22.5,N,,N,N/A
Pendle Borough Council,Financial Services,Supplies and Services,Allpay,4422,ALLPAY LIMITED,A0084372, 05/08/2021,AAS0320100,10,N,,N,N/A
Pendle Borough Council,Financial Services,Supplies and Services,Allpay,4422,ALLPAY LIMITED,A0084372, 05/08/2021,AAS0320096,20.1,N,,N,N/A
Pendle Borough Council,Financial Services,Supplies and Services,Allpay,4422,ALLPAY LIMITED,A0084372, 05/08/2021,AAS0320099,21.87,N,,N,N/A
Pendle Borough Council,Financial Services,Supplies and Services,Allpay,4422,ALLPAY LIMITED,A0084372, 05/08/2021,AAS0320097,22.57,N,,N,N/A
Pendle Borough Council,Financial Services,Supplies and Services,Allpay,4422,ALLPAY LIMITED,A0084372, 05/08/2021,AAS0320101,65,N,,N,N/A
Pendle Borough Council,Financial Services,Supplies and Services,Allpay,4422,ALLPAY LIMITED,A0084372, 05/08/2021,AAS0320098,2027.63,N,,N,N/A
Pendle Borough Council,Engineering & Special Projects,Capital Costs,Ren Grant : 1996 Act,CH22,ELITE PLUMBING,A0084584, 19/08/2021,HED0320358,11896,N,,N,
Pendle Borough Council,Engineering & Special Projects,Premises Related Expense,Grounds : R & M : Day to Day : Routine,2101,KEVIN WILKINSON LANDSCAPES LTD,A0085660, 05/08/2021,HED0320058,329,N,,N,N/A
Pendle Borough Council,Operational Services,Supplies and Services,Search Fees,4404,DRIVER HIRE TRAINING,A0089848, 12/08/2021,OPS0320194,1200,N,,N,N/A
Pendle Borough Council,Engineering & Special Projects,Supplies and Services,Publicity & advertisement,4704,WE LOVE CREATIVE LIMITED,A0090098, 05/08/2021,HED0320084,1400,N,,N,N/A
Pendle Borough Council,Engineering & Special Projects,Premises Related Expense,Grounds : R & M : Day to Day : Routine,2101,GREEN CLEAN RESTORATION,A0090368, 25/08/2021,HED0320503,4095,N,,N,N/A
Pendle Borough Council,Engineering & Special Projects,,Paid in the Year,PD03,GREEN CLEAN RESTORATION,A0090368, 25/08/2021,HED0320471,480,N,,N,N/A
Pendle Borough Council,Operational Services,Premises Related Expense,Water & Sewerage,2501,AQUAM WATER SERVICES LIMITED,A0090390, 05/08/2021,OPS0320037,7.1,N,,N,N/A
Pendle Borough Council,Engineering & Special Projects,Capital Costs,Capital : Payments,CD14,BETTS GEO ENVIRONMENTAL LIMITED,A0090455, 25/08/2021,HED0320504,250,N,,N,N/A
Pendle Borough Council,Parks & Recreation Services,Transport Related Expense,Tprt : Repairs : General,3105,SUPER AUTO SAVER,A0090951, 12/08/2021,PCO0320202,79.5,N,,N,N/A
Pendle Borough Council,Operational Services,Agency Staff,Emp : Training : Courses,1013,MALLARD CONSULTANCY LIMITED,A0091047, 25/08/2021,OPS0320392,990,N,,N,N/A
Pendle Borough Council,Financial Services,Premises Related Expense,Grounds : R & M : Day to Day : Routine,2101,LANCASHIRE ENVIRONMENTAL FUND,A0091140, 31/08/2021,AAS0320679,3300,N,,N,N/A
Pendle Borough Council,Operational Services,Supplies and Services,Printing & Stationery,4301,RESTORE DATASHRED,A0091201, 12/08/2021,OPS0320132,87.5,N,,N,N/A
Pendle Borough Council,Engineering & Special Projects,Capital Costs,Capital : Payments,CD14,JADU CREATIVE LIMITED,A0091362, 19/08/2021,HED0320367,1600,N,,N,N/A
Pendle Borough Council,Engineering & Special Projects,Premises Related Expense,Grounds : R & M : Day to Day : Routine,2101,BUCKET AND SPADE MEDIA LIMITED,A0091371, 19/08/2021,HED0320379,300,N,,N,N/A
Pendle Borough Council,Planning & Building Control,Supplies and Services,Publicity & advertisement,4704,BUCKET AND SPADE MEDIA LIMITED,A0091371, 25/08/2021,PBC0320461,175,N,,N,N/A
Pendle Borough Council,Planning & Building Control,Supplies and Services,Publicity & advertisement,4704,BUCKET AND SPADE MEDIA LIMITED,A0091371, 25/08/2021,PBC0320460,500,N,,N,N/A
Pendle Borough Council,Parks & Recreation Services,Premises Related Expense,Grounds : R & M : Day to Day : Routine,2101,CMS TREE SERVICES,A0091372, 12/08/2021,PCO0320092,400,N,,N,N/A
Pendle Borough Council,Parks & Recreation Services,Premises Related Expense,Grounds : R & M : Day to Day : Routine,2101,MARTINS COUNTRYSIDE CONTRACTING LIMITED,A0091415, 05/08/2021,PCO0319962,150,N,,N,N/A
Pendle Borough Council,Parks & Recreation Services,Premises Related Expense,Grounds : R & M : Day to Day : Routine,2101,MARTINS COUNTRYSIDE CONTRACTING LIMITED,A0091415, 05/08/2021,PCO0319962,202,N,,N,N/A
Pendle Borough Council,Information Services,Supplies and Services,EFM : Other Equipment,4003,STORM TECHNOLOGIES LIMITED,A0091493, 25/08/2021,ITS0320464,77.3,N,,N,N/A
Pendle Borough Council,Information Services,Capital Costs,Capital : Payments,CD14,STORM TECHNOLOGIES LIMITED,A0091493, 19/08/2021,ITS0320296,23.38,N,,N,N/A
Pendle Borough Council,Information Services,Capital Costs,Capital : Payments,CD14,STORM TECHNOLOGIES LIMITED,A0091493, 19/08/2021,ITS0320303,35.51,N,,N,N/A
Pendle Borough Council,Information Services,Capital Costs,Capital : Payments,CD14,STORM TECHNOLOGIES LIMITED,A0091493, 19/08/2021,ITS0320302,96.48,N,,N,N/A
Pendle Borough Council,Information Services,Capital Costs,Capital : Payments,CD14,STORM TECHNOLOGIES LIMITED,A0091493, 19/08/2021,ITS0320297,168.33,N,,N,N/A
Pendle Borough Council,Information Services,Capital Costs,Capital : Payments,CD14,STORM TECHNOLOGIES LIMITED,A0091493, 19/08/2021,ITS0320298,0,N,,N,N/A
Pendle Borough Council,Information Services,Capital Costs,Capital : Payments,CD14,STORM TECHNOLOGIES LIMITED,A0091493, 19/08/2021,ITS0320299,0,N,,N,N/A
Pendle Borough Council,Information Services,Capital Costs,Capital : Payments,CD14,STORM TECHNOLOGIES LIMITED,A0091493, 19/08/2021,ITS0320300,0,N,,N,N/A
Pendle Borough Council,Information Services,Capital Costs,Capital : Payments,CD14,STORM TECHNOLOGIES LIMITED,A0091493, 19/08/2021,ITS0320301,0,N,,N,N/A
Pendle Borough Council,Information Services,Capital Costs,Capital : Payments,CD14,STORM TECHNOLOGIES LIMITED,A0091493, 19/08/2021,ITS0320298,31.1,N,,N,N/A
Pendle Borough Council,Information Services,Capital Costs,Capital : Payments,CD14,STORM TECHNOLOGIES LIMITED,A0091493, 19/08/2021,ITS0320298,32.73,N,,N,N/A
Pendle Borough Council,Information Services,Capital Costs,Capital : Payments,CD14,STORM TECHNOLOGIES LIMITED,A0091493, 19/08/2021,ITS0320299,32.73,N,,N,N/A
Pendle Borough Council,Information Services,Capital Costs,Capital : Payments,CD14,STORM TECHNOLOGIES LIMITED,A0091493, 19/08/2021,ITS0320300,32.73,N,,N,N/A
Pendle Borough Council,Information Services,Capital Costs,Capital : Payments,CD14,STORM TECHNOLOGIES LIMITED,A0091493, 19/08/2021,ITS0320301,32.73,N,,N,N/A
Pendle Borough Council,Information Services,Capital Costs,Capital : Payments,CD14,STORM TECHNOLOGIES LIMITED,A0091493, 19/08/2021,ITS0320299,36.95,N,,N,N/A
Pendle Borough Council,Information Services,Capital Costs,Capital : Payments,CD14,STORM TECHNOLOGIES LIMITED,A0091493, 19/08/2021,ITS0320300,36.95,N,,N,N/A
Pendle Borough Council,Information Services,Capital Costs,Capital : Payments,CD14,STORM TECHNOLOGIES LIMITED,A0091493, 19/08/2021,ITS0320301,36.95,N,,N,N/A
Pendle Borough Council,Information Services,Capital Costs,Capital : Payments,CD14,STORM TECHNOLOGIES LIMITED,A0091493, 19/08/2021,ITS0320298,49.76,N,,N,N/A
Pendle Borough Council,Information Services,Capital Costs,Capital : Payments,CD14,STORM TECHNOLOGIES LIMITED,A0091493, 19/08/2021,ITS0320299,49.76,N,,N,N/A
Pendle Borough Council,Information Services,Capital Costs,Capital : Payments,CD14,STORM TECHNOLOGIES LIMITED,A0091493, 19/08/2021,ITS0320300,49.76,N,,N,N/A
Pendle Borough Council,Information Services,Capital Costs,Capital : Payments,CD14,STORM TECHNOLOGIES LIMITED,A0091493, 19/08/2021,ITS0320301,49.76,N,,N,N/A
Pendle Borough Council,Information Services,Capital Costs,Capital : Payments,CD14,STORM TECHNOLOGIES LIMITED,A0091493, 19/08/2021,ITS0320298,51.59,N,,N,N/A
Pendle Borough Council,Information Services,Capital Costs,Capital : Payments,CD14,STORM TECHNOLOGIES LIMITED,A0091493, 19/08/2021,ITS0320298,154.88,N,,N,N/A
Pendle Borough Council,Information Services,Capital Costs,Capital : Payments,CD14,STORM TECHNOLOGIES LIMITED,A0091493, 19/08/2021,ITS0320299,154.88,N,,N,N/A
Pendle Borough Council,Information Services,Capital Costs,Capital : Payments,CD14,STORM TECHNOLOGIES LIMITED,A0091493, 19/08/2021,ITS0320300,154.88,N,,N,N/A
Pendle Borough Council,Information Services,Capital Costs,Capital : Payments,CD14,STORM TECHNOLOGIES LIMITED,A0091493, 19/08/2021,ITS0320301,154.88,N,,N,N/A
Pendle Borough Council,Information Services,Capital Costs,Capital : Payments,CD14,STORM TECHNOLOGIES LIMITED,A0091493, 19/08/2021,ITS0320299,155.71,N,,N,N/A
Pendle Borough Council,Information Services,Capital Costs,Capital : Payments,CD14,STORM TECHNOLOGIES LIMITED,A0091493, 19/08/2021,ITS0320298,167.56,N,,N,N/A
Pendle Borough Council,Information Services,Capital Costs,Capital : Payments,CD14,STORM TECHNOLOGIES LIMITED,A0091493, 19/08/2021,ITS0320298,180.65,N,,N,N/A
Pendle Borough Council,Information Services,Capital Costs,Capital : Payments,CD14,STORM TECHNOLOGIES LIMITED,A0091493, 19/08/2021,ITS0320298,181.83,N,,N,N/A
Pendle Borough Council,Information Services,Capital Costs,Capital : Payments,CD14,STORM TECHNOLOGIES LIMITED,A0091493, 19/08/2021,ITS0320299,181.83,N,,N,N/A
Pendle Borough Council,Information Services,Capital Costs,Capital : Payments,CD14,STORM TECHNOLOGIES LIMITED,A0091493, 19/08/2021,ITS0320300,181.83,N,,N,N/A
Pendle Borough Council,Information Services,Capital Costs,Capital : Payments,CD14,STORM TECHNOLOGIES LIMITED,A0091493, 19/08/2021,ITS0320301,181.83,N,,N,N/A
Pendle Borough Council,Information Services,Capital Costs,Capital : Payments,CD14,STORM TECHNOLOGIES LIMITED,A0091493, 19/08/2021,ITS0320300,232.98,N,,N,N/A
Pendle Borough Council,Information Services,Capital Costs,Capital : Payments,CD14,STORM TECHNOLOGIES LIMITED,A0091493, 19/08/2021,ITS0320299,270,N,,N,N/A
Pendle Borough Council,Information Services,Capital Costs,Capital : Payments,CD14,STORM TECHNOLOGIES LIMITED,A0091493, 19/08/2021,ITS0320300,270,N,,N,N/A
Pendle Borough Council,Information Services,Capital Costs,Capital : Payments,CD14,STORM TECHNOLOGIES LIMITED,A0091493, 19/08/2021,ITS0320301,270,N,,N,N/A
Pendle Borough Council,Information Services,Capital Costs,Capital : Payments,CD14,STORM TECHNOLOGIES LIMITED,A0091493, 19/08/2021,ITS0320299,272.32,N,,N,N/A
Pendle Borough Council,Information Services,Capital Costs,Capital : Payments,CD14,STORM TECHNOLOGIES LIMITED,A0091493, 19/08/2021,ITS0320300,272.32,N,,N,N/A
Pendle Borough Council,Information Services,Capital Costs,Capital : Payments,CD14,STORM TECHNOLOGIES LIMITED,A0091493, 19/08/2021,ITS0320301,272.32,N,,N,N/A
Pendle Borough Council,Information Services,Capital Costs,Capital : Payments,CD14,STORM TECHNOLOGIES LIMITED,A0091493, 19/08/2021,ITS0320300,311.42,N,,N,N/A
Pendle Borough Council,Information Services,Capital Costs,Capital : Payments,CD14,STORM TECHNOLOGIES LIMITED,A0091493, 19/08/2021,ITS0320299,340.98,N,,N,N/A
Pendle Borough Council,Information Services,Capital Costs,Capital : Payments,CD14,STORM TECHNOLOGIES LIMITED,A0091493, 19/08/2021,ITS0320300,340.98,N,,N,N/A
Pendle Borough Council,Information Services,Capital Costs,Capital : Payments,CD14,STORM TECHNOLOGIES LIMITED,A0091493, 19/08/2021,ITS0320301,340.98,N,,N,N/A
Pendle Borough Council,Information Services,Capital Costs,Capital : Payments,CD14,STORM TECHNOLOGIES LIMITED,A0091493, 19/08/2021,ITS0320298,622.84,N,,N,N/A
Pendle Borough Council,Information Services,Capital Costs,Capital : Payments,CD14,STORM TECHNOLOGIES LIMITED,A0091493, 19/08/2021,ITS0320301,622.84,N,,N,N/A
Pendle Borough Council,Information Services,Capital Costs,Capital : Payments,CD14,STORM TECHNOLOGIES LIMITED,A0091493, 19/08/2021,ITS0320298,781.1,N,,N,N/A
Pendle Borough Council,Information Services,Capital Costs,Capital : Payments,CD14,STORM TECHNOLOGIES LIMITED,A0091493, 19/08/2021,ITS0320299,781.1,N,,N,N/A
Pendle Borough Council,Information Services,Capital Costs,Capital : Payments,CD14,STORM TECHNOLOGIES LIMITED,A0091493, 19/08/2021,ITS0320300,781.1,N,,N,N/A
Pendle Borough Council,Information Services,Capital Costs,Capital : Payments,CD14,STORM TECHNOLOGIES LIMITED,A0091493, 19/08/2021,ITS0320301,781.1,N,,N,N/A
Pendle Borough Council,Information Services,Capital Costs,Capital : Payments,CD14,STORM TECHNOLOGIES LIMITED,A0091493, 19/08/2021,ITS0320298,925.61,N,,N,N/A
Pendle Borough Council,Information Services,Capital Costs,Capital : Payments,CD14,STORM TECHNOLOGIES LIMITED,A0091493, 19/08/2021,ITS0320298,952.94,N,,N,N/A
Pendle Borough Council,Information Services,Capital Costs,Capital : Payments,CD14,STORM TECHNOLOGIES LIMITED,A0091493, 19/08/2021,ITS0320301,952.94,N,,N,N/A
Pendle Borough Council,Information Services,Capital Costs,Capital : Payments,CD14,STORM TECHNOLOGIES LIMITED,A0091493, 19/08/2021,ITS0320300,1064.63,N,,N,N/A
Pendle Borough Council,Information Services,Capital Costs,Capital : Payments,CD14,STORM TECHNOLOGIES LIMITED,A0091493, 19/08/2021,ITS0320301,1064.63,N,,N,N/A
Pendle Borough Council,Information Services,Capital Costs,Capital : Payments,CD14,STORM TECHNOLOGIES LIMITED,A0091493, 19/08/2021,ITS0320299,1064.63,N,,N,N/A
Pendle Borough Council,Information Services,Capital Costs,Capital : Payments,CD14,STORM TECHNOLOGIES LIMITED,A0091493, 19/08/2021,ITS0320299,2123.01,N,,N,N/A
Pendle Borough Council,Information Services,Capital Costs,Capital : Payments,CD14,STORM TECHNOLOGIES LIMITED,A0091493, 19/08/2021,ITS0320301,2123.01,N,,N,N/A
Pendle Borough Council,Information Services,Capital Costs,Capital : Payments,CD14,STORM TECHNOLOGIES LIMITED,A0091493, 19/08/2021,ITS0320298,2392.68,N,,N,N/A
Pendle Borough Council,Information Services,Capital Costs,Capital : Payments,CD14,STORM TECHNOLOGIES LIMITED,A0091493, 19/08/2021,ITS0320299,3249.39,N,,N,N/A
Pendle Borough Council,Information Services,Capital Costs,Capital : Payments,CD14,STORM TECHNOLOGIES LIMITED,A0091493, 19/08/2021,ITS0320300,3249.39,N,,N,N/A
Pendle Borough Council,Information Services,Capital Costs,Capital : Payments,CD14,STORM TECHNOLOGIES LIMITED,A0091493, 19/08/2021,ITS0320301,3249.39,N,,N,N/A
Pendle Borough Council,Parks & Recreation Services,Agency Staff,Emp : Basic Wages,1001,NW RECRUITMENT SERVICES LIMITED,A0091588, 05/08/2021,PCO0320034,2604.99,N,,N,N/A
Pendle Borough Council,Parks & Recreation Services,Agency Staff,Emp : Basic Wages,1001,NW RECRUITMENT SERVICES LIMITED,A0091588, 12/08/2021,PCO0320094,2938.26,N,,N,N/A
Pendle Borough Council,Parks & Recreation Services,Agency Staff,Emp : Basic Wages,1001,NW RECRUITMENT SERVICES LIMITED,A0091588, 12/08/2021,PCO0319823,3069.73,N,,N,N/A
Pendle Borough Council,Parks & Recreation Services,Agency Staff,Emp : Basic Wages,1001,NW RECRUITMENT SERVICES LIMITED,A0091588, 25/08/2021,PCO0320401,3485.55,N,,N,N/A
Pendle Borough Council,Parks & Recreation Services,Agency Staff,Emp : Basic Wages,1001,NW RECRUITMENT SERVICES LIMITED,A0091588, 19/08/2021,PCO0320278,3600.03,N,,N,N/A
Pendle Borough Council,Operational Services,Agency Staff,Emp : Agency Wages,1004,NW RECRUITMENT SERVICES LIMITED,A0091588, 25/08/2021,OPS0320394,2817.46,N,,N,N/A
Pendle Borough Council,Operational Services,Agency Staff,Emp : Agency Wages,1004,NW RECRUITMENT SERVICES LIMITED,A0091588, 19/08/2021,OPS0320228,3013.63,N,,N,N/A
Pendle Borough Council,Operational Services,Agency Staff,Emp : Agency Wages,1004,NW RECRUITMENT SERVICES LIMITED,A0091588, 12/08/2021,OPS0320161,3372.66,N,,N,N/A
Pendle Borough Council,Operational Services,Agency Staff,Emp : Agency Wages,1004,NW RECRUITMENT SERVICES LIMITED,A0091588, 12/08/2021,OPS0320161,2319.58,N,,N,N/A
Pendle Borough Council,Operational Services,Agency Staff,Emp : Agency Wages,1004,NW RECRUITMENT SERVICES LIMITED,A0091588, 19/08/2021,OPS0320228,3013.64,N,,N,N/A
Pendle Borough Council,Operational Services,Agency Staff,Emp : Agency Wages,1004,NW RECRUITMENT SERVICES LIMITED,A0091588, 25/08/2021,OPS0320394,3274.72,N,,N,N/A
Pendle Borough Council,Operational Services,Agency Staff,Emp : Agency Wages,1004,NW RECRUITMENT SERVICES LIMITED,A0091588, 12/08/2021,OPS0320161,655.47,N,,N,N/A
Pendle Borough Council,Operational Services,Agency Staff,Emp : Agency Wages,1004,NW RECRUITMENT SERVICES LIMITED,A0091588, 25/08/2021,OPS0320394,1303.31,N,,N,N/A
Pendle Borough Council,Operational Services,Agency Staff,Emp : Agency Wages,1004,NW RECRUITMENT SERVICES LIMITED,A0091588, 19/08/2021,OPS0320228,3013.63,N,,N,N/A
Pendle Borough Council,Parks & Recreation Services,Agency Staff,Emp : Salaries & Wages,1020,NW RECRUITMENT SERVICES LIMITED,A0091588, 25/08/2021,PCO0320400,36.4,N,,N,N/A
Pendle Borough Council,Parks & Recreation Services,Agency Staff,Emp : Salaries & Wages,1020,NW RECRUITMENT SERVICES LIMITED,A0091588, 19/08/2021,PCO0320324,78.4,N,,N,N/A
Pendle Borough Council,Parks & Recreation Services,Supplies and Services,EFM : Other Equipment,4003,NW RECRUITMENT SERVICES LIMITED,A0091588, 12/08/2021,PCO0319823,415.82,N,,N,N/A
Pendle Borough Council,Parks & Recreation Services,Supplies and Services,EFM : Other Equipment,4003,NW RECRUITMENT SERVICES LIMITED,A0091588, 05/08/2021,PCO0320034,428.05,N,,N,N/A
Pendle Borough Council,Parks & Recreation Services,Supplies and Services,EFM : Other Equipment,4003,NW RECRUITMENT SERVICES LIMITED,A0091588, 12/08/2021,PCO0320094,428.05,N,,N,N/A
Pendle Borough Council,Operational Services,Transport Related Expense,Tprt : Repairs : General,3105,GO PLANT FLEET SERVICES LIMITED,A0091600, 05/08/2021,OPS0319988,402.95,N,,N,N/A
Pendle Borough Council,Operational Services,Transport Related Expense,Tprt : Repairs : General,3105,GO PLANT FLEET SERVICES LIMITED,A0091600, 05/08/2021,OPS0320011,90.84,N,,N,N/A
Pendle Borough Council,Operational Services,Transport Related Expense,Tprt : Repairs : General,3105,GO PLANT FLEET SERVICES LIMITED,A0091600, 05/08/2021,OPS0320012,94.19,N,,N,N/A
Pendle Borough Council,Operational Services,Transport Related Expense,Tprt : Repairs : General,3105,GO PLANT FLEET SERVICES LIMITED,A0091600, 05/08/2021,OPS0320010,114.29,N,,N,N/A
Pendle Borough Council,Operational Services,Transport Related Expense,Tprt : Repairs : General,3105,GO PLANT FLEET SERVICES LIMITED,A0091600, 05/08/2021,OPS0320007,351.5,N,,N,N/A
Pendle Borough Council,Operational Services,Transport Related Expense,Tprt : Repairs : General,3105,GO PLANT FLEET SERVICES LIMITED,A0091600, 05/08/2021,OPS0320006,115.4,N,,N,N/A
Pendle Borough Council,Operational Services,Transport Related Expense,Tprt : Repairs : General,3105,GO PLANT FLEET SERVICES LIMITED,A0091600, 05/08/2021,OPS0320008,160.95,N,,N,N/A
Pendle Borough Council,Operational Services,Transport Related Expense,Tprt : Repairs : General,3105,GO PLANT FLEET SERVICES LIMITED,A0091600, 05/08/2021,OPS0319987,54.81,N,,N,N/A
Pendle Borough Council,Operational Services,Transport Related Expense,Tprt : Repairs : General,3105,GO PLANT FLEET SERVICES LIMITED,A0091600, 05/08/2021,OPS0319991,137.73,N,,N,N/A
Pendle Borough Council,Operational Services,Transport Related Expense,Tprt : Repairs : General,3105,GO PLANT FLEET SERVICES LIMITED,A0091600, 05/08/2021,OPS0319992,54.91,N,,N,N/A
Pendle Borough Council,Operational Services,Transport Related Expense,Tprt : Repairs : General,3105,GO PLANT FLEET SERVICES LIMITED,A0091600, 05/08/2021,OPS0319996,149.14,N,,N,N/A
Pendle Borough Council,Operational Services,Transport Related Expense,Tprt : Repairs : General,3105,GO PLANT FLEET SERVICES LIMITED,A0091600, 05/08/2021,OPS0320004,90.98,N,,N,N/A
Pendle Borough Council,Operational Services,Transport Related Expense,Tprt : Repairs : General,3105,GO PLANT FLEET SERVICES LIMITED,A0091600, 05/08/2021,OPS0319997,20.1,N,,N,N/A
Pendle Borough Council,Operational Services,Transport Related Expense,Tprt : Repairs : General,3105,GO PLANT FLEET SERVICES LIMITED,A0091600, 05/08/2021,OPS0319999,31.49,N,,N,N/A
Pendle Borough Council,Operational Services,Transport Related Expense,Tprt : Repairs : General,3105,GO PLANT FLEET SERVICES LIMITED,A0091600, 05/08/2021,OPS0320001,316.2,N,,N,N/A
Pendle Borough Council,Operational Services,Transport Related Expense,Tprt : Repairs : General,3105,GO PLANT FLEET SERVICES LIMITED,A0091600, 05/08/2021,OPS0320002,40.2,N,,N,N/A
Pendle Borough Council,Operational Services,Transport Related Expense,Tprt : Repairs : General,3105,GO PLANT FLEET SERVICES LIMITED,A0091600, 05/08/2021,OPS0319998,39.19,N,,N,N/A
Pendle Borough Council,Operational Services,Transport Related Expense,Tyres,3204,GO PLANT FLEET SERVICES LIMITED,A0091600, 05/08/2021,OPS0320009,216.53,N,,N,N/A
Pendle Borough Council,Operational Services,Transport Related Expense,Tyres,3204,GO PLANT FLEET SERVICES LIMITED,A0091600, 05/08/2021,OPS0319986,44.74,N,,N,N/A
Pendle Borough Council,Operational Services,Transport Related Expense,Tyres,3204,GO PLANT FLEET SERVICES LIMITED,A0091600, 05/08/2021,OPS0319993,67.55,N,,N,N/A
Pendle Borough Council,Operational Services,Transport Related Expense,Tyres,3204,GO PLANT FLEET SERVICES LIMITED,A0091600, 05/08/2021,OPS0319995,27.3,N,,N,N/A
Pendle Borough Council,Operational Services,Transport Related Expense,Tyres,3204,GO PLANT FLEET SERVICES LIMITED,A0091600, 05/08/2021,OPS0319994,54.03,N,,N,N/A
Pendle Borough Council,Operational Services,Transport Related Expense,Tyres,3204,GO PLANT FLEET SERVICES LIMITED,A0091600, 05/08/2021,OPS0319989,49.41,N,,N,N/A
Pendle Borough Council,Operational Services,Transport Related Expense,Tyres,3204,GO PLANT FLEET SERVICES LIMITED,A0091600, 05/08/2021,OPS0320000,45.6,N,,N,N/A
Pendle Borough Council,Operational Services,Transport Related Expense,Tyres,3204,GO PLANT FLEET SERVICES LIMITED,A0091600, 05/08/2021,OPS0320003,67.5,N,,N,N/A
Pendle Borough Council,Operational Services,Transport Related Expense,Tprt : Annual Hire Charge,3601,GO PLANT FLEET SERVICES LIMITED,A0091600, 05/08/2021,OPS0319985,100,N,,N,N/A
Pendle Borough Council,Operational Services,Transport Related Expense,Tprt : Annual Hire Charge,3601,GO PLANT FLEET SERVICES LIMITED,A0091600, 05/08/2021,OPS0320023,3540.62,N,,N,N/A
Pendle Borough Council,Operational Services,Transport Related Expense,Tprt : Annual Hire Charge,3601,GO PLANT FLEET SERVICES LIMITED,A0091600, 05/08/2021,OPS0320023,3540.62,N,,N,N/A
Pendle Borough Council,Operational Services,Transport Related Expense,Tprt : Annual Hire Charge,3601,GO PLANT FLEET SERVICES LIMITED,A0091600, 05/08/2021,OPS0320023,3540.62,N,,N,N/A
Pendle Borough Council,Operational Services,Transport Related Expense,Tprt : Annual Hire Charge,3601,GO PLANT FLEET SERVICES LIMITED,A0091600, 05/08/2021,OPS0320023,3540.62,N,,N,N/A
Pendle Borough Council,Operational Services,Transport Related Expense,Tprt : Annual Hire Charge,3601,GO PLANT FLEET SERVICES LIMITED,A0091600, 05/08/2021,OPS0320023,3540.62,N,,N,N/A
Pendle Borough Council,Operational Services,Transport Related Expense,Tprt : Annual Hire Charge,3601,GO PLANT FLEET SERVICES LIMITED,A0091600, 05/08/2021,OPS0320023,3344.64,N,,N,N/A
Pendle Borough Council,Operational Services,Transport Related Expense,Tprt : Annual Hire Charge,3601,GO PLANT FLEET SERVICES LIMITED,A0091600, 05/08/2021,OPS0320023,3540.62,N,,N,N/A
Pendle Borough Council,Operational Services,Transport Related Expense,Tprt : Annual Hire Charge,3601,GO PLANT FLEET SERVICES LIMITED,A0091600, 05/08/2021,OPS0320023,3540.62,N,,N,N/A
Pendle Borough Council,Operational Services,Transport Related Expense,Tprt : Annual Hire Charge,3601,GO PLANT FLEET SERVICES LIMITED,A0091600, 05/08/2021,OPS0320023,3549.74,N,,N,N/A
Pendle Borough Council,Operational Services,Transport Related Expense,Tprt : Annual Hire Charge,3601,GO PLANT FLEET SERVICES LIMITED,A0091600, 05/08/2021,OPS0320023,3549.74,N,,N,N/A
Pendle Borough Council,Operational Services,Transport Related Expense,Tprt : Annual Hire Charge,3601,GO PLANT FLEET SERVICES LIMITED,A0091600, 05/08/2021,OPS0320023,3549.74,N,,N,N/A
Pendle Borough Council,Operational Services,Transport Related Expense,Tprt : Annual Hire Charge,3601,GO PLANT FLEET SERVICES LIMITED,A0091600, 05/08/2021,OPS0320023,3497.07,N,,N,N/A
Pendle Borough Council,Operational Services,Transport Related Expense,Tprt : Annual Hire Charge,3601,GO PLANT FLEET SERVICES LIMITED,A0091600, 05/08/2021,OPS0320023,3393,N,,N,N/A
Pendle Borough Council,Operational Services,Transport Related Expense,Tprt : Annual Hire Charge,3601,GO PLANT FLEET SERVICES LIMITED,A0091600, 05/08/2021,OPS0320023,239.53,N,,N,N/A
Pendle Borough Council,Operational Services,Transport Related Expense,Tprt : Annual Hire Charge,3601,GO PLANT FLEET SERVICES LIMITED,A0091600, 05/08/2021,OPS0320023,2654.17,N,,N,N/A
Pendle Borough Council,Operational Services,Transport Related Expense,Tprt : Annual Hire Charge,3601,GO PLANT FLEET SERVICES LIMITED,A0091600, 05/08/2021,OPS0320023,1981.53,N,,N,N/A
Pendle Borough Council,Operational Services,Transport Related Expense,Tprt : Annual Hire Charge,3601,GO PLANT FLEET SERVICES LIMITED,A0091600, 05/08/2021,OPS0320023,1981.53,N,,N,N/A
Pendle Borough Council,Operational Services,Transport Related Expense,Tprt : Annual Hire Charge,3601,GO PLANT FLEET SERVICES LIMITED,A0091600, 05/08/2021,OPS0320023,1981.53,N,,N,N/A
Pendle Borough Council,Operational Services,Transport Related Expense,Tprt : Annual Hire Charge,3601,GO PLANT FLEET SERVICES LIMITED,A0091600, 05/08/2021,OPS0320023,1981.53,N,,N,N/A
Pendle Borough Council,Operational Services,Transport Related Expense,Tprt : Annual Hire Charge,3601,GO PLANT FLEET SERVICES LIMITED,A0091600, 05/08/2021,OPS0320023,1981.53,N,,N,N/A
Pendle Borough Council,Operational Services,Transport Related Expense,Tprt : Annual Hire Charge,3601,GO PLANT FLEET SERVICES LIMITED,A0091600, 05/08/2021,OPS0320023,509.54,N,,N,N/A
Pendle Borough Council,Operational Services,Transport Related Expense,Tprt : Annual Hire Charge,3601,GO PLANT FLEET SERVICES LIMITED,A0091600, 05/08/2021,OPS0320023,509.54,N,,N,N/A
Pendle Borough Council,Operational Services,Transport Related Expense,Tprt : Annual Hire Charge,3601,GO PLANT FLEET SERVICES LIMITED,A0091600, 05/08/2021,OPS0320005,100,N,,N,N/A
Pendle Borough Council,Operational Services,Transport Related Expense,Tprt : Annual Hire Charge,3601,GO PLANT FLEET SERVICES LIMITED,A0091600, 05/08/2021,OPS0319984,20,N,,N,N/A
Pendle Borough Council,Operational Services,Transport Related Expense,Tprt : Annual Hire Charge,3601,GO PLANT FLEET SERVICES LIMITED,A0091600, 05/08/2021,OPS0320023,598.81,N,,N,N/A
Pendle Borough Council,Operational Services,Transport Related Expense,Tprt : Annual Hire Charge,3601,GO PLANT FLEET SERVICES LIMITED,A0091600, 05/08/2021,OPS0320023,650,N,,N,N/A
Pendle Borough Council,Operational Services,Transport Related Expense,Tprt : Annual Hire Charge,3601,GO PLANT FLEET SERVICES LIMITED,A0091600, 05/08/2021,OPS0320023,598.81,N,,N,N/A
Pendle Borough Council,Operational Services,Transport Related Expense,Tprt : Annual Hire Charge,3601,GO PLANT FLEET SERVICES LIMITED,A0091600, 05/08/2021,OPS0320023,598.81,N,,N,N/A
Pendle Borough Council,Operational Services,Transport Related Expense,Tprt : Annual Hire Charge,3601,GO PLANT FLEET SERVICES LIMITED,A0091600, 05/08/2021,OPS0320023,650,N,,N,N/A
Pendle Borough Council,Operational Services,Transport Related Expense,Tprt : Annual Hire Charge,3601,GO PLANT FLEET SERVICES LIMITED,A0091600, 05/08/2021,OPS0320023,598.81,N,,N,N/A
Pendle Borough Council,Operational Services,Transport Related Expense,Tprt : Annual Hire Charge,3601,GO PLANT FLEET SERVICES LIMITED,A0091600, 05/08/2021,OPS0320023,239.53,N,,N,N/A
Pendle Borough Council,Operational Services,Transport Related Expense,Tprt : Annual Hire Charge,3601,GO PLANT FLEET SERVICES LIMITED,A0091600, 05/08/2021,OPS0320023,239.53,N,,N,N/A
Pendle Borough Council,Operational Services,Transport Related Expense,Tprt : Annual Hire Charge,3601,GO PLANT FLEET SERVICES LIMITED,A0091600, 05/08/2021,OPS0320023,239.53,N,,N,N/A
Pendle Borough Council,Operational Services,Transport Related Expense,Tprt : Annual Hire Charge,3601,GO PLANT FLEET SERVICES LIMITED,A0091600, 05/08/2021,OPS0320023,239.53,N,,N,N/A
Pendle Borough Council,Operational Services,Transport Related Expense,Tprt : Annual Hire Charge,3601,GO PLANT FLEET SERVICES LIMITED,A0091600, 05/08/2021,OPS0320023,239.53,N,,N,N/A
Pendle Borough Council,Operational Services,Transport Related Expense,Tprt : Annual Hire Charge,3601,GO PLANT FLEET SERVICES LIMITED,A0091600, 05/08/2021,OPS0320023,239.53,N,,N,N/A
Pendle Borough Council,Operational Services,Transport Related Expense,Tprt : Annual Hire Charge,3601,GO PLANT FLEET SERVICES LIMITED,A0091600, 05/08/2021,OPS0320023,339.69,N,,N,N/A
Pendle Borough Council,Operational Services,Transport Related Expense,Tprt : Annual Hire Charge,3601,GO PLANT FLEET SERVICES LIMITED,A0091600, 05/08/2021,OPS0320023,592.28,N,,N,N/A
Pendle Borough Council,Operational Services,Transport Related Expense,Tprt : Annual Hire Charge,3601,GO PLANT FLEET SERVICES LIMITED,A0091600, 05/08/2021,OPS0320023,592.28,N,,N,N/A
Pendle Borough Council,Operational Services,Transport Related Expense,Tprt : Annual Hire Charge,3601,GO PLANT FLEET SERVICES LIMITED,A0091600, 05/08/2021,OPS0320023,592.28,N,,N,N/A
Pendle Borough Council,Operational Services,Transport Related Expense,Tprt : Annual Hire Charge,3601,GO PLANT FLEET SERVICES LIMITED,A0091600, 05/08/2021,OPS0320023,592.28,N,,N,N/A
Pendle Borough Council,Operational Services,Transport Related Expense,Tprt : Annual Hire Charge,3601,GO PLANT FLEET SERVICES LIMITED,A0091600, 05/08/2021,OPS0320023,592.28,N,,N,N/A
Pendle Borough Council,Operational Services,Transport Related Expense,Tprt : Annual Hire Charge,3601,GO PLANT FLEET SERVICES LIMITED,A0091600, 05/08/2021,OPS0320023,535.67,N,,N,N/A
Pendle Borough Council,Operational Services,Transport Related Expense,Tprt : Annual Hire Charge,3601,GO PLANT FLEET SERVICES LIMITED,A0091600, 05/08/2021,OPS0320023,239.53,N,,N,N/A
Pendle Borough Council,Operational Services,Transport Related Expense,Tprt : Annual Hire Charge,3601,GO PLANT FLEET SERVICES LIMITED,A0091600, 05/08/2021,OPS0320023,496.4,N,,N,N/A
Pendle Borough Council,Operational Services,Transport Related Expense,Tprt : Annual Hire Charge,3601,GO PLANT FLEET SERVICES LIMITED,A0091600, 05/08/2021,OPS0320023,496.4,N,,N,N/A
Pendle Borough Council,Operational Services,Supplies and Services,EFM Materials,4004,GO PLANT FLEET SERVICES LIMITED,A0091600, 05/08/2021,OPS0319990,100,N,,N,N/A
Pendle Borough Council,Engineering & Special Projects,Supplies and Services,Publicity & advertisement,4704,GLOBAL MEDIA GROUP SERVICES LTD,A0091761, 12/08/2021,HED0320198,220,N,,N,N/A
Pendle Borough Council,Engineering & Special Projects,Supplies and Services,Publicity & advertisement,4704,GLOBAL MEDIA GROUP SERVICES LTD,A0091761, 12/08/2021,HED0320199,220,N,,N,N/A
Pendle Borough Council,Engineering & Special Projects,Supplies and Services,Publicity & advertisement,4704,GLOBAL MEDIA GROUP SERVICES LTD,A0091761, 12/08/2021,HED0320196,600,N,,N,N/A
Pendle Borough Council,Engineering & Special Projects,Supplies and Services,Publicity & advertisement,4704,GLOBAL MEDIA GROUP SERVICES LTD,A0091761, 12/08/2021,HED0320197,600,N,,N,N/A
Pendle Borough Council,Engineering & Special Projects,Agency Staff,Emp : Salaries & Wages,1020,THE OYSTER PARTNERSHIP LIMITED,A0091781, 05/08/2021,HED0320074,406.28,N,,N,N/A
Pendle Borough Council,Engineering & Special Projects,Agency Staff,Emp : Salaries & Wages,1020,THE OYSTER PARTNERSHIP LIMITED,A0091781, 19/08/2021,HED0320350,488.75,N,,N,N/A
Pendle Borough Council,Engineering & Special Projects,Agency Staff,Emp : Salaries & Wages,1020,THE OYSTER PARTNERSHIP LIMITED,A0091781, 19/08/2021,HED0320356,541.57,N,,N,N/A
Pendle Borough Council,Engineering & Special Projects,Agency Staff,Emp : Salaries & Wages,1020,THE OYSTER PARTNERSHIP LIMITED,A0091781, 19/08/2021,HED0320349,633.15,N,,N,N/A
Pendle Borough Council,Engineering & Special Projects,Agency Staff,Emp : Salaries & Wages,1020,THE OYSTER PARTNERSHIP LIMITED,A0091781, 25/08/2021,HED0320483,785.5,N,,N,N/A
Pendle Borough Council,Engineering & Special Projects,Agency Staff,Emp : Salaries & Wages,1020,THE OYSTER PARTNERSHIP LIMITED,A0091781, 19/08/2021,HED0320355,1002.7,N,,N,N/A
Pendle Borough Council,Engineering & Special Projects,Agency Staff,Emp : Salaries & Wages,1020,THE OYSTER PARTNERSHIP LIMITED,A0091781, 05/08/2021,HED0320073,1012.2,N,,N,N/A
Pendle Borough Council,Engineering & Special Projects,Agency Staff,Emp : Salaries & Wages,1020,THE OYSTER PARTNERSHIP LIMITED,A0091781, 25/08/2021,HED0320482,1100.35,N,,N,N/A
Pendle Borough Council,Engineering & Special Projects,Agency Staff,Emp : Salaries & Wages,1020,THE OYSTER PARTNERSHIP LIMITED,A0091781, 19/08/2021,HED0320352,1215.7,N,,N,N/A
Pendle Borough Council,Engineering & Special Projects,Agency Staff,Emp : Salaries & Wages,1020,THE OYSTER PARTNERSHIP LIMITED,A0091781, 19/08/2021,HED0320347,1232.4,N,,N,N/A
Pendle Borough Council,Engineering & Special Projects,Agency Staff,Emp : Salaries & Wages,1020,THE OYSTER PARTNERSHIP LIMITED,A0091781, 25/08/2021,HED0320480,1248.15,N,,N,N/A
Pendle Borough Council,Engineering & Special Projects,Agency Staff,Emp : Salaries & Wages,1020,THE OYSTER PARTNERSHIP LIMITED,A0091781, 05/08/2021,HED0320070,1300,N,,N,N/A
Pendle Borough Council,Engineering & Special Projects,Supplies and Services,Consultants Fees,4401,THE OYSTER PARTNERSHIP LIMITED,A0091781, 19/08/2021,HED0320351,1192.95,N,,N,N/A
Pendle Borough Council,Engineering & Special Projects,Supplies and Services,Consultants Fees,4401,THE OYSTER PARTNERSHIP LIMITED,A0091781, 19/08/2021,HED0320353,1260,N,,N,N/A
Pendle Borough Council,Engineering & Special Projects,Supplies and Services,Consultants Fees,4401,THE OYSTER PARTNERSHIP LIMITED,A0091781, 05/08/2021,HED0320071,1278.9,N,,N,N/A
Pendle Borough Council,Engineering & Special Projects,Supplies and Services,Consultants Fees,4401,THE OYSTER PARTNERSHIP LIMITED,A0091781, 19/08/2021,HED0320354,1311.5,N,,N,N/A
Pendle Borough Council,Engineering & Special Projects,Supplies and Services,Consultants Fees,4401,THE OYSTER PARTNERSHIP LIMITED,A0091781, 25/08/2021,HED0320481,1376,N,,N,N/A
Pendle Borough Council,Engineering & Special Projects,Supplies and Services,Consultants Fees,4401,THE OYSTER PARTNERSHIP LIMITED,A0091781, 19/08/2021,HED0320348,1462,N,,N,N/A
Pendle Borough Council,Engineering & Special Projects,Supplies and Services,Consultants Fees,4401,THE OYSTER PARTNERSHIP LIMITED,A0091781, 05/08/2021,HED0320072,1505,N,,N,N/A
Pendle Borough Council,Human Resources,Supplies and Services,Consultants Fees,4401,G2 RECRUITMENT SOLUTIONS,A0091827, 12/08/2021,PER0320217,1274,N,,N,N/A
Pendle Borough Council,Human Resources,Supplies and Services,Consultants Fees,4401,G2 RECRUITMENT SOLUTIONS,A0091827, 25/08/2021,PER0320452,1333.75,N,,N,N/A
Pendle Borough Council,Human Resources,Supplies and Services,Consultants Fees,4401,G2 RECRUITMENT SOLUTIONS,A0091827, 19/08/2021,PER0320308,1355.55,N,,N,N/A
Pendle Borough Council,Property Services,Premises Related Expense,Water & Sewerage,2501,BUSINESS STREAM,A0091916, 25/08/2021,EST0320490,46.06,N,,N,N/A
Pendle Borough Council,Property Services,Premises Related Expense,Water & Sewerage,2501,BUSINESS STREAM,A0091916, 19/08/2021,EST0320364,17.55,N,,N,N/A
Pendle Borough Council,Property Services,Premises Related Expense,Water & Sewerage,2501,BUSINESS STREAM,A0091916, 25/08/2021,EST0320491,5.52,N,,N,N/A
Pendle Borough Council,Financial Services,Supplies and Services,EFM Materials,4004,MARY CONROY,A0091925, 09/08/2021,AAS0320676,700,N,,N,N/A
Pendle Borough Council,Financial Services,Supplies and Services,EFM Materials,4004,MARY CONROY,A0091925, 23/08/2021,AAS0320678,700,N,,N,N/A
Pendle Borough Council,Engineering & Special Projects,Agency Staff,Emp : Salaries & Wages,1020,PICK PROTECTION,A0091948, 05/08/2021,HED0320069,32,N,,N,N/A
Pendle Borough Council,Operational Services,,Stock : Purchases,PJ01,SMI GROUP UK,A0091999, 25/08/2021,OPS0320398,7,N,,N,N/A
Pendle Borough Council,Operational Services,,Stock : Purchases,PJ01,SMI GROUP UK,A0091999, 25/08/2021,OPS0320398,70,N,,N,N/A
Pendle Borough Council,Operational Services,,Stock : Purchases,PJ01,SMI GROUP UK,A0091999, 25/08/2021,OPS0320398,425.64,N,,N,N/A
Pendle Borough Council,Engineering & Special Projects,Transfer Payments,Accommodation ,6103,MR WS BHATTI MR ZA BUTT PENDLE LODGE,A0092429, 19/08/2021,HED0320311,2700,N,,N,N/A
Pendle Borough Council,Engineering & Special Projects,Transfer Payments,Accommodation ,6103,MR WS BHATTI MR ZA BUTT PENDLE LODGE,A0092429, 19/08/2021,HED0320312,2700,N,,N,N/A
Pendle Borough Council,Engineering & Special Projects,Transfer Payments,Accommodation ,6103,MR WS BHATTI MR ZA BUTT PENDLE LODGE,A0092429, 19/08/2021,HED0320313,2700,N,,N,N/A
Pendle Borough Council,Engineering & Special Projects,Supplies and Services,Other Expenses,4705,PAD 2 LET LTD,A0092554, 05/08/2021,HED0320083,350,N,,N,N/A
Pendle Borough Council,Operational Services,Supplies and Services,EFM Materials,4004,AMAZON PAYMENTS UK LIMITED,A0093876, 12/08/2021,OPS0320151,20.82,N,,N,N/A
Pendle Borough Council,Operational Services,Supplies and Services,EFM Materials,4004,AMAZON PAYMENTS UK LIMITED,A0093876, 05/08/2021,OPS0320018,21.64,N,,N,N/A
Pendle Borough Council,Operational Services,Supplies and Services,EFM Materials,4004,AMAZON PAYMENTS UK LIMITED,A0093876, 12/08/2021,OPS0320152,21.64,N,,N,N/A
Pendle Borough Council,Operational Services,Supplies and Services,EFM Materials,4004,AMAZON PAYMENTS UK LIMITED,A0093876, 12/08/2021,OPS0320169,62.46,N,,N,N/A
Pendle Borough Council,Parks & Recreation Services,Premises Related Expense,Grounds : R & M : Day to Day : Routine,2101,CONSERVATION CONTRACTS NORTH WEST LIMITED,A0094008, 12/08/2021,PCO0320088,34,N,,N,N/A
Pendle Borough Council,Parks & Recreation Services,Premises Related Expense,Grounds : R & M : Day to Day : Routine,2101,CONSERVATION CONTRACTS NORTH WEST LIMITED,A0094008, 12/08/2021,PCO0320088,204,N,,N,N/A
Pendle Borough Council,Parks & Recreation Services,Supplies and Services,Expenditure : Materials,0002,TURFIX PITCH SOLUTIONS,A0094206, 25/08/2021,PCO0320413,2065,N,,N,N/A
Pendle Borough Council,Revenues Services,Supplies and Services,Consultants Fees,4401,MARSTON (HOLDINGS) LIMITED,A0094273, 25/08/2021,TRE0320485,156.24,N,,N,N/A
Pendle Borough Council,Engineering & Special Projects,Supplies and Services,LCC Levy (Admins Costs),4419,MARSTON (HOLDINGS) LIMITED,A0094273, 25/08/2021,HED0320478,-310,N,,N,N/A
Pendle Borough Council,Engineering & Special Projects,Supplies and Services,LCC Levy (Admins Costs),4419,MARSTON (HOLDINGS) LIMITED,A0094273, 25/08/2021,HED0320478,310,N,,N,N/A
Pendle Borough Council,Engineering & Special Projects,Supplies and Services,LCC Levy (Admins Costs),4419,CDER GROUP LIMITED,A0094274, 05/08/2021,HED0320064,-39.5,N,,N,N/A
Pendle Borough Council,Engineering & Special Projects,Supplies and Services,LCC Levy (Admins Costs),4419,CDER GROUP LIMITED,A0094274, 05/08/2021,HED0320064,39.5,N,,N,N/A
Pendle Borough Council,Information Services,Capital Costs,Capital : Payments,CD14,COMPLETE IT SYSTEMS LIMITED,A0094309, 05/08/2021,ITS0320042,30,N,,N,N/A
Pendle Borough Council,Information Services,Capital Costs,Capital : Payments,CD14,COMPLETE IT SYSTEMS LIMITED,A0094309, 05/08/2021,ITS0320043,37.36,N,,N,N/A
Pendle Borough Council,Information Services,Capital Costs,Capital : Payments,CD14,COMPLETE IT SYSTEMS LIMITED,A0094309, 05/08/2021,ITS0320040,119.4,N,,N,N/A
Pendle Borough Council,Information Services,Capital Costs,Capital : Payments,CD14,COMPLETE IT SYSTEMS LIMITED,A0094309, 05/08/2021,ITS0320042,215.28,N,,N,N/A
Pendle Borough Council,Information Services,Capital Costs,Capital : Payments,CD14,COMPLETE IT SYSTEMS LIMITED,A0094309, 05/08/2021,ITS0320040,298.5,N,,N,N/A
Pendle Borough Council,Information Services,Capital Costs,Capital : Payments,CD14,COMPLETE IT SYSTEMS LIMITED,A0094309, 05/08/2021,ITS0320040,322.38,N,,N,N/A
Pendle Borough Council,Information Services,Capital Costs,Capital : Payments,CD14,COMPLETE IT SYSTEMS LIMITED,A0094309, 05/08/2021,ITS0320039,644.76,N,,N,N/A
Pendle Borough Council,Information Services,Capital Costs,Capital : Payments,CD14,COMPLETE IT SYSTEMS LIMITED,A0094309, 05/08/2021,ITS0320043,908.92,N,,N,N/A
Pendle Borough Council,Information Services,Capital Costs,Capital : Payments,CD14,COMPLETE IT SYSTEMS LIMITED,A0094309, 05/08/2021,ITS0320043,910.64,N,,N,N/A
Pendle Borough Council,Information Services,Capital Costs,Capital : Payments,CD14,COMPLETE IT SYSTEMS LIMITED,A0094309, 05/08/2021,ITS0320040,1289.6,N,,N,N/A
Pendle Borough Council,Information Services,Capital Costs,Capital : Payments,CD14,COMPLETE IT SYSTEMS LIMITED,A0094309, 05/08/2021,ITS0320042,2044.53,N,,N,N/A
Pendle Borough Council,Information Services,Capital Costs,Capital : Payments,CD14,COMPLETE IT SYSTEMS LIMITED,A0094309, 05/08/2021,ITS0320040,2436.65,N,,N,N/A
Pendle Borough Council,Information Services,Capital Costs,Capital : Payments,CD14,COMPLETE IT SYSTEMS LIMITED,A0094309, 05/08/2021,ITS0320042,3519.76,N,,N,N/A
Pendle Borough Council,Information Services,Capital Costs,Capital : Payments,CD14,COMPLETE IT SYSTEMS LIMITED,A0094309, 05/08/2021,ITS0320040,3868.8,N,,N,N/A
Pendle Borough Council,Information Services,Capital Costs,Capital : Payments,CD14,COMPLETE IT SYSTEMS LIMITED,A0094309, 05/08/2021,ITS0320039,4298.68,N,,N,N/A
Pendle Borough Council,Information Services,Capital Costs,Capital : Payments,CD14,COMPLETE IT SYSTEMS LIMITED,A0094309, 05/08/2021,ITS0320040,7309.95,N,,N,N/A
Pendle Borough Council,Information Services,Capital Costs,Capital : Payments,CD14,COMPLETE IT SYSTEMS LIMITED,A0094309, 05/08/2021,ITS0320038,17572.5,N,,N,N/A
Pendle Borough Council,Financial Services,Supplies and Services,Consultants Fees,4401,CASTLEFIELD RECRUITMENT LIMITED,A0094486, 12/08/2021,AAS0320220,4125,N,,N,N/A
Pendle Borough Council,Financial Services,Supplies and Services,Consultants Fees,4401,CASTLEFIELD RECRUITMENT LIMITED,A0094486, 12/08/2021,AAS0320221,4125,N,,N,N/A
Pendle Borough Council,Financial Services,Supplies and Services,Consultants Fees,4401,CASTLEFIELD RECRUITMENT LIMITED,A0094486, 19/08/2021,AAS0320373,4125,N,,N,N/A
Pendle Borough Council,Financial Services,Supplies and Services,Consultants Fees,4401,CASTLEFIELD RECRUITMENT LIMITED,A0094486, 25/08/2021,AAS0320514,4125,N,,N,N/A
Pendle Borough Council,Engineering & Special Projects,Supplies and Services,Other Expenses,4705,EUROLOOS LIMITED,A0094490, 05/08/2021,HED0320085,332.16,N,,N,N/A
Pendle Borough Council,Engineering & Special Projects,Supplies and Services,Other Expenses,4705,EUROLOOS LIMITED,A0094490, 12/08/2021,HED4006441,-75,N,,N,N/A
Pendle Borough Council,Engineering & Special Projects,Supplies and Services,Other Expenses,4705,EUROLOOS LIMITED,A0094490, 12/08/2021,HED0320141,321.42,N,,N,N/A
Pendle Borough Council,Engineering & Special Projects,Supplies and Services,Other Expenses,4705,EUROLOOS LIMITED,A0094490, 12/08/2021,HED0320142,321.42,N,,N,N/A
Pendle Borough Council,Engineering & Special Projects,Supplies and Services,Other Expenses,4705,EUROLOOS LIMITED,A0094490, 12/08/2021,HED0320164,321.42,N,,N,N/A
Pendle Borough Council,Engineering & Special Projects,Supplies and Services,Miscellaneous : Other,4707,EUROLOOS LIMITED,A0094490, 12/08/2021,HED0320143,114.28,N,,N,N/A
Pendle Borough Council,Human Resources,Supplies and Services,Seminars etc All Costs,4601,AQUILA TRAINING SERVICES LIMITED,A0095119, 19/08/2021,PER0320304,190,N,,N,N/A
Pendle Borough Council,Human Resources,Indirect Employee Expenses,Recruitment,1221,HB EDITORIAL SERVICES LIMITED,A0095242, 25/08/2021,PER0320453,495,N,,N,N/A
Pendle Borough Council,Engineering & Special Projects,Capital Costs,Capital : Payments,CD14,Urban Fencing Ltd,A0095401, 12/08/2021,HED0320207,1250,N,,N,N/A
Pendle Borough Council,Parks & Recreation Services,Transport Related Expense,Tprt : Repairs : General,3105,MERRITT & FRYERS LTD,A0095575, 19/08/2021,PCO0320279,98.63,N,,N,N/A
Pendle Borough Council,Planning & Building Control,Supplies and Services,Other Expenses,4705,SAFE SANITISATION LTD,A0095668, 25/08/2021,PBC0320467,2033,N,,N,N/A
Pendle Borough Council,Parks & Recreation Services,Premises Related Expense,Grounds : R & M : Day to Day : Routine,2101,M W ENVIRONMENTAL,A0095862, 12/08/2021,PCO0320203,85,N,,N,N/A
Pendle Borough Council,Parks & Recreation Services,Premises Related Expense,Grounds : R & M : Day to Day : Routine,2101,M W ENVIRONMENTAL,A0095862, 12/08/2021,PCO0320204,335.89,N,,N,N/A
Pendle Borough Council,Parks & Recreation Services,Premises Related Expense,Grounds : R & M : Day to Day : Routine,2101,M W ENVIRONMENTAL,A0095862, 19/08/2021,PCO0320276,175,N,,N,N/A
Pendle Borough Council,Parks & Recreation Services,Premises Related Expense,Grounds : R & M : Day to Day : Routine,2101,M W ENVIRONMENTAL,A0095862, 19/08/2021,PCO0320277,57.06,N,,N,N/A
Pendle Borough Council,Parks & Recreation Services,Premises Related Expense,Grounds : R & M : Day to Day : Routine,2101,M W ENVIRONMENTAL,A0095862, 12/08/2021,PCO0320149,115,N,,N,N/A
Pendle Borough Council,Engineering & Special Projects,Capital Costs,Capital : Payments,CD14,COLNE YOUTH ACTION GROUP,A0096017, 12/08/2021,HED0320200,253.98,Y,,N,N/A
Pendle Borough Council,Engineering & Special Projects,Capital Costs,Capital : Payments,CD14,COLNE YOUTH ACTION GROUP,A0096017, 25/08/2021,HED0320484,224.94,Y,,N,N/A
Pendle Borough Council,Engineering & Special Projects,Capital Costs,Capital : Payments,CD14,COLNE YOUTH ACTION GROUP,A0096017, 12/08/2021,HED0320200,363.07,Y,,N,N/A
Pendle Borough Council,Financial Services,Supplies and Services,Grant Funding,4737,MOZUFFAR HUSSAIN,A0096107, 19/08/2021,AAS0320388,2667,N,,N,N/A
Pendle Borough Council,Financial Services,Supplies and Services,Grant Funding,4737,SYED SAJJAD HAIDER,A0096109, 19/08/2021,AAS0320391,2667,N,,N,N/A
Pendle Borough Council,Financial Services,Supplies and Services,Grant Funding,4737,SALMA NAEEM,A0096111, 25/08/2021,AAS0320390,2667,N,,N,N/A
Pendle Borough Council,Financial Services,Supplies and Services,Grant Funding,4737,REHANA TARIQ,A0096227, 19/08/2021,AAS0320386,2667,N,,N,N/A
Pendle Borough Council,Information Services,Capital Costs,Capital : Payments,CD14,ZOHO CORPORATION B.V.,A0096240, 12/08/2021,ITS0318842,-4090,N,,N,N/A
Pendle Borough Council,Information Services,Capital Costs,Capital : Payments,CD14,ZOHO CORPORATION B.V.,A0096240, 12/08/2021,ITS0318842,2155,N,,N,N/A
Pendle Borough Council,Information Services,Capital Costs,Capital : Payments,CD14,ZOHO CORPORATION B.V.,A0096240, 12/08/2021,ITS0318842,2155,N,,N,N/A
Pendle Borough Council,Information Services,Capital Costs,Capital : Payments,CD14,ZOHO CORPORATION B.V.,A0096240, 12/08/2021,ITS0318842,7373,N,,N,N/A
Pendle Borough Council,Financial Services,Supplies and Services,Grant Funding,4737,MOHAMMAD SHAFIQUE,A0096254, 19/08/2021,AAS0320387,2667,N,,N,N/A
Pendle Borough Council,Human Resources,Supplies and Services,Seminars etc All Costs,4601,INSTEP UK LTD,A0096267, 19/08/2021,PER0320306,15.38,N,,N,N/A
Pendle Borough Council,Financial Services,Supplies and Services,Grant Funding,4737,ALI JEBRAN,A0096276, 19/08/2021,AAS0320389,2667,N,,N,N/A
Pendle Borough Council,Financial Services,Supplies and Services,Grant Funding,4737,SAJAD AKRAM KHAWAJA,A0096316, 19/08/2021,AAS0320385,2667,N,,N,N/A
Pendle Borough Council,Financial Services,Supplies and Services,Grants/Contributions,4739,USMAN ARIF,A0096372, 19/08/2021,AAS0318810,750,N,,N,N/A
Pendle Borough Council,Financial Services,Supplies and Services,Grant Funding,4737,USMAN ARIF,A0096380, 19/08/2021,AAS0318819,1000,N,,N,N/A
Pendle Borough Council,Human Resources,Indirect Employee Expenses,Recruitment,1221,GATENBY SANDERSON,A0096387, 12/08/2021,PER0320130,5340,N,,N,N/A
Pendle Borough Council,Financial Services,Supplies and Services,Grant Funding,4737,JAVED IQBAL GONDAL,A0096404, 05/08/2021,AAS0319035,1000,N,,N,N/A
Pendle Borough Council,Engineering & Special Projects,Supplies and Services,Children`s holiday activities,4716,DEALVIC FINANCE LTD,A0096407, 12/08/2021,HED0320139,5000,N,,N,N/A
Pendle Borough Council,Engineering & Special Projects,Transfer Payments,Accommodation ,6103,REGENT GUEST HOUSE,A0096417, 05/08/2021,HED0320020,875,N,,N,N/A
Pendle Borough Council,Engineering & Special Projects,Transfer Payments,Accommodation ,6103,REGENT GUEST HOUSE,A0096417, 12/08/2021,HED0320123,875,N,,N,N/A
Pendle Borough Council,Engineering & Special Projects,Transfer Payments,Accommodation ,6103,REGENT GUEST HOUSE,A0096417, 19/08/2021,HED0320315,875,N,,N,N/A
Pendle Borough Council,Planning & Building Control,,Fees Income : Non-VATable,9302,REDACT - PERSONAL DATA,A0096418, 03/08/2021,PBC0319943,34,N,,N,N/A
Pendle Borough Council,Engineering & Special Projects,Supplies and Services,Other Expenses,4705,REDACT - PERSONAL DATA,A0096421, 19/08/2021,HED0320021,800,N,,N,N/A
Pendle Borough Council,Operational Services,,Fees Income : Non-VATable,9302,REDACT - PERSONAL DATA,A0096422, 05/08/2021,OPS0320036,1410,N,,N,N/A
Pendle Borough Council,Engineering & Special Projects,Premises Related Expense,Grounds : R & M : Day to Day : Routine,2101,MR ANDREW AINDOW,A0096423, 05/08/2021,HED0320053,100,N,,N,N/A
Pendle Borough Council,Financial Services,Supplies and Services,Other Expenses,4705,REDACT - PERSONAL DATA,A0096424, 03/08/2021,AAS0320095,100,N,,N,N/A
Pendle Borough Council,Engineering & Special Projects,Premises Related Expense,Grounds : R & M : Day to Day : Routine,2101,CHORLEY`S ANGELS COMMUNITY GROUP,A0096425, 12/08/2021,HED0320208,250,N,,N,N/A
Pendle Borough Council,Engineering & Special Projects,Supplies and Services,Other Expenses,4705,MUIR GROUP HOUSING ASSOCIATION LTD,A0096426, 12/08/2021,HED0320137,478.68,N,,N,N/A
Pendle Borough Council,Engineering & Special Projects,Capital Costs,Capital : Payments,CD14,SANCTUS LIMITED,A0096427, 12/08/2021,HED0320212,20896.72,N,,N,N/A
Pendle Borough Council,Property Services,Premises Related Expense,Electricity,2203,E.ON NEXT ENERGY LIMITED,A0096428, 12/08/2021,EST0320183,3.2,N,,N,N/A
Pendle Borough Council,Engineering & Special Projects,Supplies and Services,Children`s holiday activities,4716,SPORTSCOOL LTD,A0096429, 19/08/2021,HED0320318,18360,N,,N,N/A
Pendle Borough Council,Engineering & Special Projects,Supplies and Services,Children`s holiday activities,4716,SIMPLY CLASSIC,A0096433, 25/08/2021,HED0320476,2225,N,,N,N/A
Pendle Borough Council,Financial Services,,Fees Income : Non-VATable,9302,REDACT - PERSONAL DATA,A0096434, 19/08/2021,AAS0320346,462,N,,N,N/A
Pendle Borough Council,Financial Services,Supplies and Services,Grant Funding,4737,SHUJA ZIA,A0096435, 19/08/2021,AAS0320381,2667,N,,N,N/A
Pendle Borough Council,Financial Services,Supplies and Services,Grant Funding,4737,SHUJA ZIA,A0096435, 19/08/2021,AAS0320383,2667,N,,N,N/A
Pendle Borough Council,Financial Services,Supplies and Services,Grant Funding,4737,FAYYAZ AHMED,A0096436, 19/08/2021,AAS0320382,1000,N,,N,N/A
Pendle Borough Council,Financial Services,Supplies and Services,Grant Funding,4737,FAYYAZ AHMED,A0096436, 19/08/2021,AAS0320384,1000,N,,N,N/A
Pendle Borough Council,Operational Services,,Fees Income : Non-VATable,9302,REDACT - PERSONAL DATA,A0096439, 25/08/2021,OPS0320462,975,N,,N,N/A
Pendle Borough Council,Operational Services,Premises Related Expense,Bldgs : R & M : Day To Day,2001,KENNY HANDFORD,A0096440, 25/08/2021,OPS0320451,40,N,,N,N/A
Pendle Borough Council,Engineering & Special Projects,Premises Related Expense,Bldgs : R & M : Abnormal,2002,GRAHAM CROWTHER,A0096441, 25/08/2021,HED0320506,680,N,,N,N/A
Pendle Borough Council,Human Resources,,Cash : Payroll Advances,PB03,REDACT - PERSONAL DATA,A0096443, 25/08/2021,PER0320507,460,N,,N,N/A
Pendle Borough Council,Human Resources,,Cash : Payroll Advances,PB03,REDACT - PERSONAL DATA,A0096444, 25/08/2021,PER0320508,400,N,,N,N/A
Pendle Borough Council,Human Resources,,Cash : Payroll Advances,PB03,REDACT - PERSONAL DATA,A0096445, 25/08/2021,PER0320509,460,N,,N,N/A
Pendle Borough Council,Human Resources,,Cash : Payroll Advances,PB03,REDACT - PERSONAL DATA,A0096446, 25/08/2021,PER0320510,430,N,,N,N/A
Pendle Borough Council,Human Resources,,Cash : Payroll Advances,PB03,REDACT - PERSONAL DATA,A0096447, 25/08/2021,PER0320511,335,N,,N,N/A
Pendle Borough Council,Human Resources,,Cash : Payroll Advances,PB03,REDACT - PERSONAL DATA,A0096448, 25/08/2021,PER0320512,460,N,,N,N/A
